Cogmind - Beta 16 @@@ ROGUE MODE // 2025.11.09 @ 02:27:42 Player: Darby Result: Destroyed 0b10! Performance ------------- Evolutions (9) 4500 Regions Visited (34) 6800 Robots Destroyed (433) 2165 Value Destroyed (16224) 16224 Prototype IDs (92) 1840 Alien Tech Used (10) 2000 Bonus (38933) 38933 TOTAL SCORE: 72462 Bonus ------- Triggered High Security 500 Triggered Max Security 2000 High Alert Combat Kills 2584 Follower Combat Kills 3182 Entered Garrisons 600 Used RIF Installer 1000 Network Hubs Disabled 400 Aligned with FarCom 300 Met Data Miner 300 Built Enhanced Grunts 300 A7 Reached Mainframe 300 Met R17 at Cetus 500 Used Core Reset Matrix 3000 Met R17 at Research 2000 Met Sigix 2000 Activated Exoskeleton 3000 Recovered Sigix Corpse 4000 Escaped with Exo-Sigix 10000 Win 3000 Friendly Fire -33 Cogmind --------- Core Integrity 2015/2100 Matter 300/300 Energy 448/450 System Corruption 0% +Membrane Temperature Cool (5) +ITN Movement Flying (28) Location Tau Ceti IV Orbit Parts ------- > --- POWER (2) -------- Micro Antimatter Reactor Micro Antimatter Reactor > --- PROPULSION (7) --- Cooled Nuclear Pulse Thruster Cooled Nuclear Pulse Thruster Impulse Thruster Array Impulse Thruster Array Improved Q-thruster > --- UTILITY (14) ----- Large Storage Unit Gravity Neutralizer Structural Scanner Enhanced Optical Array Advanced Signal Interpreter Active Sensor Suite Centrium Medium Armor Plating Improved Hacking Suite Spacefold Activator > --- WEAPON (2) ------- Sigix Broadsword > --- INVENTORY (15) --- Micro Antimatter Reactor 2N-1CE's Frost Array Advanced ECM Suite Advanced Phase Shifter Experimental Hardlight Generator Integrated Reactor Null Cannon Hypervelocity Multirail Z-bomb Delivery System Sigix Corpse Sigix Corpse Peak State ------------ > --- POWER ------------ Micro Antimatter Reactor Micro Antimatter Reactor > --- PROPULSION ------- Cooled Nuclear Pulse Thruster Cooled Nuclear Pulse Thruster Impulse Thruster Array Impulse Thruster Array Improved Q-thruster > --- UTILITY ---------- Large Storage Unit Gravity Neutralizer Structural Scanner Enhanced Optical Array Advanced Signal Interpreter Active Sensor Suite Improved Transmission Jammer Centrium Medium Armor Plating Improved Hacking Suite Spacefold Activator > --- WEAPON ----------- Sigix Broadsword > --- INVENTORY -------- 2N-1CE's Frost Array Advanced ECM Suite Advanced Phase Shifter Experimental Hardlight Generator Integrated Reactor Null Cannon Hypervelocity Multirail Z-bomb Delivery System Sigix Corpse Sigix Corpse [Rating: 190] Favorites ----------- Power Light Fission Core Engine Light Ion Engine Power Core Light Fission Core Reactor Micro Antimatter Reactor Propulsion Cooled Cesium-ion Thruster Treads Centrium Heavy Treads Leg Carbon-fiber Leg Wheel Armored Wheel Hover Unit Combat Airjet Flight Unit Cooled Cesium-ion Thruster Utility Medium Storage Unit Device Structural Scanner Storage Medium Storage Unit Processor Improved Signal Interpreter Hackware Improved Hacking Suite Protection Centrium Medium Armor Plating Artifact Spacefold Activator Weapon Scythe Energy Gun Wave Gun Energy Cannon Heavy Particle Cannon Ballistic Gun Assault Rifle Ballistic Cannon Magnetic Acceleration Cannon Launcher Grenade Launcher Special Weapon Remote Datajack Impact Weapon Great Maul Slashing Weapon Scythe Piercing Weapon Enhanced Force Lance Special Melee Weapon Datajack Build | -11 -10 -10 -10 -9 -8 -8 -7 -7 -7 -6 -6 -6 -6 -6 -6 -6 -6 -5 -5 -5 -5 -5 -5 -5 -5 -4 -4 -4 -3 -3 -2 -2 -2 -1 ------- Run | Yrd Mat Min Exi Min Mat Gar Fac Gar Sto Fac Was Fac Gar Fac Low Low Dat Pro Fac Was Fac Ext Cet Arc Hub Fac Was Fac Res Tes Res Qua Sec Acc Slots Evolved 18 | . . . . . 4 . 2 . . 2 . . . . . . . . 2 . . . . . . 2 . . 2 . 2 . . 2 Power 1 | . . . . . . . . . . . . . . . . . . . 1 . . . . . . . . . . . . . . . Propulsion 5 | . . . . . 2 . 1 . . . . . . . . . . . . . . . . . . 1 . . . . . . . 1 Utility 12 | . . . . . 2 . 1 . . 2 . . . . . . . . 1 . . . . . . 1 . . 2 . 2 . . 1 Weapon . | . . . . . . . . . . . . . . . . . . . . . . . . . . . . . . . . . . . Parts Attached 369 | 8 19 1 . 4 26 5 29 5 5 15 . 22 4 31 3 1 . . 38 . 7 34 5 5 6 20 1 21 28 10 9 4 1 2 Power 52 | 1 2 . . 1 3 4 2 1 1 1 . 3 . 3 1 . . . 7 . 1 4 . 2 1 4 . 4 4 . 1 . . 1 Engine 12 | 1 2 . . 1 . . . 1 . . . . . . . . . . 1 . . 2 . . . 2 . 2 . . . . . . Core 31 | . . . . . 3 4 2 . 1 1 . 3 . 3 1 . . . 6 . 1 2 . . 1 1 . 1 . . 1 . . . Reactor 9 | . . . . . . . . . . . . . . . . . . . . . . . . 2 . 1 . 1 4 . . . . 1 Propulsion 108 | 2 6 . . 2 8 1 9 . 2 3 . 7 . 12 . . . . 14 . 1 12 2 1 2 4 . 10 8 1 1 . . . Treads 12 | . 1 . . . 3 1 . . . . . . . . . . . . . . . . 2 1 2 1 . 1 . . . . . . Leg 14 | 2 . . . . . . . . . . . . . . . . . . . . . 12 . . . . . . . . . . . . Wheel 7 | . 2 . . 2 3 . . . . . . . . . . . . . . . . . . . . . . . . . . . . . Hover 8 | . 1 . . . 1 . . . . . . . . . . . . . . . . . . . . . . 6 . . . . . . Flight 67 | . 2 . . . 1 . 9 . 2 3 . 7 . 12 . . . . 14 . 1 . . . . 3 . 3 8 1 1 . . . Utility 138 | 3 3 1 . 1 6 . 11 3 2 7 . 9 4 14 2 1 . . 13 . 4 9 3 2 2 7 . 5 13 3 6 2 1 1 Device 59 | 3 . . . 1 1 . 4 . 1 4 . 5 1 2 1 1 . . 8 . 1 3 1 . . 4 . 3 6 3 3 2 . 1 Storage 11 | . 2 1 . . . . 1 . 1 . . 1 . . . . . . 1 . 1 . . . 1 . . . 2 . . . . . Processor 14 | . . . . . 2 . 2 . . 1 . 1 . 1 1 . . . . . 1 . . . . 3 . 1 1 . . . . . Hackware 36 | . . . . . . . 4 3 . 2 . 2 3 10 . . . . 3 . 1 1 . 2 1 . . . 1 . 3 . . . Protection 17 | . 1 . . . 3 . . . . . . . . 1 . . . . 1 . . 5 2 . . . . 1 3 . . . . . Artifact 1 | . . . . . . . . . . . . . . . . . . . . . . . . . . . . . . . . . 1 . Weapon 71 | 2 8 . . . 9 . 7 1 . 4 . 3 . 2 . . . . 4 . 1 9 . . 1 5 1 2 3 6 1 2 . . Energy Gun 4 | . . . . . 1 . . . . . . . . . . . . . . . . 2 . . . . . . . 1 . . . . Energy Cannon 16 | . 2 . . . 2 . . . . 1 . . . . . . . . . . 1 3 . . . 2 . . 1 3 1 . . . Ballistic Gun 12 | 2 1 . . . 3 . . . . . . . . . . . . . . . . 3 . . . 1 . 1 . 1 . . . . Ballistic Cannon 7 | . . . . . 1 . 2 . . . . . . . . . . . . . . 1 . . . 1 . 1 1 . . . . . Launcher 10 | . 3 . . . 1 . 1 . . 1 . 1 . 1 . . . . 1 . . . . . . . . . . 1 . . . . Special Weapon 6 | . 1 . . . . . 1 . . . . 1 . 1 . . . . 1 . . . . . . 1 . . . . . . . . Impact Weapon 4 | . . . . . 1 . . . . . . . . . . . . . 1 . . . . . . . 1 . . . . 1 . . Slashing Weapon 8 | . . . . . . . 2 1 . 1 . 1 . . . . . . 1 . . . . . 1 . . . . . . 1 . . Piercing Weapon 1 | . . . . . . . . . . . . . . . . . . . . . . . . . . . . . 1 . . . . . Special Melee Weapon 3 | . 1 . . . . . 1 . . 1 . . . . . . . . . . . . . . . . . . . . . . . . Unidentified Prototypes 32 | . . . . . 3 . 1 . 2 1 . . . . 1 . . . 2 . . . 2 . 1 1 1 1 2 9 1 3 . 1 Parts Lost 84 | . 2 . . 4 3 1 3 3 . 2 . 5 1 5 . . . . 8 . 4 9 . . 7 13 . 8 . . 3 . 2 1 Power 17 | . . . . 1 2 . . . . . . . . 2 . . . . 1 . 1 1 . . 2 4 . 2 . . . . 1 . Propulsion 26 | . 1 . . 2 1 1 1 1 . 1 . 2 1 2 . . . . 5 . 1 2 . . 1 2 . 2 . . . . . . Utility 30 | . . . . 1 . . 1 1 . 1 . 2 . . . . . . 1 . 1 5 . . 4 5 . 3 . . 3 . 1 1 Weapon 11 | . 1 . . . . . 1 1 . . . 1 . 1 . . . . 1 . 1 1 . . . 2 . 1 . . . . . . Highest Loss Streak 6 | . 1 . . 3 1 1 2 2 . 1 . 2 1 2 . . . . 6 . 2 2 . . 4 6 . 3 . . 3 . 2 1 To Critical Strikes 3 | . . . . . . . . 1 . . . . . . . . . . . . . 2 . . . . . . . . . . . . Average Backups 9 | 3 12 19 19 14 16 18 6 6 7 6 6 6 6 6 6 5 4 5 3 4 5 9 9 7 6 7 5 4 7 12 14 11 9 9 Power . | . 1 1 2 1 . . . . . . . . . . 1 . . . . . 1 1 . . . . . . . 1 1 1 1 1 Propulsion 1 | 1 1 3 2 . 1 5 . . . . . . . . 1 1 1 1 . 1 1 . . 2 1 1 . . 1 1 1 1 1 . Utility 4 | . 5 7 7 6 7 7 3 3 4 3 3 3 3 3 2 1 1 1 1 2 2 2 3 3 2 3 4 2 3 5 4 4 4 4 Weapon 2 | 1 3 5 6 4 5 4 1 1 2 2 2 1 2 1 1 1 1 2 . 1 . 5 4 1 . 2 1 . . 4 6 4 3 3 Tool/Special . | . . . . . . . . . . . . . . . . . . . . . . . . . . . . . . . . . . . Unused Backups 49 | 2 2 1 3 . 8 4 3 . . 3 . 2 . 5 1 3 . . . . . 2 . 1 1 1 . 1 1 . 1 2 . 2 Power 4 | . 1 . . . . . . . . . . . . . . 1 . . . . . 1 . . . . . . . . . . . 1 Propulsion 10 | 2 . . 2 . 3 . . . . . . . . . 1 1 . . . . . . . . . . . . . . 1 . . . Utility 22 | . . . 1 . 2 4 3 . . 3 . 2 . 4 . 1 . . . . . . . . . . . 1 . . . 1 . . Weapon 7 | . 1 . . . 3 . . . . . . . . . . . . . . . . 1 . 1 . 1 . . . . . . . . Tool/Special 6 | . . 1 . . . . . . . . . . . 1 . . . . . . . . . . 1 . . . 1 . . 1 . 1 Average Slot Usage (%) 88 | . 99 100 85 86 96 93 91 94 92 94 100 92 92 93 100 100 98 100 80 76 73 90 92 86 80 62 36 72 75 85 82 73 75 68 Engine 2 | . 14 14 14 13 2 . . 5 1 . . . . . . . . . . . . . . . . . . 1 . . . . . . Core 4 | . . . . . 6 9 7 1 5 6 6 6 6 5 6 6 6 6 8 11 9 8 11 1 . 4 . 2 . . . . . . Reactor 1 | . . . . . . . . . . . . . . . . . . . . . . . . 9 8 2 . 2 7 9 8 8 7 7 Treads 5 | . 9 14 14 1 9 20 . . . . . . . . . . . . . . . . 6 16 16 8 . . . . . . . . Leg 2 | . 8 . . . . . . . . . . . . . . . . . . . . 25 13 . . . . . . . . . . . Wheel 3 | . 9 14 14 15 23 10 . . . . . . . . . . . . . . . . . . . . . . . . . . . . Flight 14 | . . . . . . . 37 37 38 32 33 32 32 31 33 33 33 33 26 17 16 2 . . . 1 5 2 15 19 17 17 17 20 Device 12 | . 11 13 14 12 20 . 9 1 5 16 20 18 20 13 13 14 20 20 14 11 13 7 10 10 8 8 5 8 15 19 21 21 20 13 Storage 6 | . 12 14 14 14 9 9 7 7 7 6 6 6 6 6 6 6 6 6 4 5 5 5 5 5 4 4 . 1 4 4 4 4 4 4 Processor 5 | . . . . . 1 9 7 7 7 7 6 6 6 6 11 13 13 13 5 5 5 5 5 5 3 5 10 13 11 9 8 8 8 8 Hackware 7 | . . . . . . . 8 19 16 14 13 8 6 15 14 11 6 6 6 11 11 11 11 12 16 13 10 10 8 4 6 4 4 4 Protection 3 | . 3 . . . 5 18 . . . . . . . . . . . . . . . 7 11 8 4 . . . 5 13 10 4 4 4 Energy Cannon 3 | . 8 13 . 6 8 8 . . . . . . . 2 . 2 . . 1 . 1 2 5 5 4 4 . 3 . . . . . . Ballistic Gun 2 | . 11 13 . . 5 4 . . . . . . . . . . . . . . . 2 . . . . . . . . . . . . Special Weapon 1 | . 4 . . 8 1 . 3 1 . . . 2 5 2 5 . 4 6 3 5 . . . . . . 5 . . . . . . . Slashing Weapon 2 | . . . . . . . 1 5 7 4 6 5 6 5 6 6 6 6 4 5 5 . . . . . . . . . . 3 3 3 Peak Build Rating 190 | 9 9 9 12 14 35 36 50 50 46 62 60 61 64 66 68 69 68 68 94 69 80 87 109 114 115 114 42 91 123 146 155 158 170 190 Average Rating 63 | 5 8 8 9 12 27 33 45 46 45 54 58 56 58 60 64 68 67 68 74 69 68 75 103 110 105 88 34 71 111 126 139 149 157 179 On Entrance 63 | . 9 9 8 12 14 34 35 50 44 46 60 57 53 55 62 66 69 68 68 69 69 66 87 109 114 76 34 34 79 120 129 128 153 129 Avg Prop Armor Cover (%) 11 | . 11 11 17 13 9 13 . . . . . . . . . . . . . . . 2 5 2 . . . 11 . . . . . . Naked Turns . | . . . . . . . . . . . . . . . . . . . . . . . . . . . . . . . . . . . Heaviest Build 108 | 9 51 89 85 90 107 108 25 29 23 29 23 32 25 30 29 30 25 25 45 33 35 66 72 80 74 64 5 37 59 60 60 60 59 62 Greatest Support 188 | 20 20 10 10 28 40 24 31 31 29 29 29 33 31 45 43 43 31 31 45 33 33 105 160 188 188 160 7 72 66 66 60 66 59 65 Greatest Overweight (x) 11 | . 11 8 8 8 9 8 1 . . . . 1 . . . . . . 1 . 1 . . . . . . 3 . . . . 3 . Average Overweight (x) . | . 2 7 8 5 2 7 . . . . . . . . . . . . . . . . . . . . . . . . . . . . Largest Inventory Capacity 25 | 5 20 25 25 25 25 25 25 10 10 10 10 10 10 10 10 10 10 10 10 10 10 10 10 10 10 10 5 10 15 15 15 15 15 15 Average Capacity 13 | 5 16 24 25 25 25 25 10 10 10 10 10 10 10 10 10 10 10 10 9 10 9 9 10 10 9 9 5 6 10 15 15 15 15 15 Most Carried 25 | 5 20 25 25 24 25 25 25 10 10 10 10 10 10 10 10 10 10 10 10 4 7 10 10 10 10 10 5 6 10 15 15 15 15 13 Average Carried 12 | 3 12 23 24 22 24 24 9 9 10 9 9 9 9 9 9 9 9 10 7 4 5 9 9 9 8 8 5 4 7 13 14 14 13 11 Final Capacity 25 | 5 20 25 25 25 25 25 10 10 10 10 10 10 10 10 10 10 10 10 10 10 8 10 10 10 10 5 5 10 15 15 15 15 15 15 Final Carried 25 | 5 20 25 25 23 25 25 10 10 10 10 9 10 10 10 10 10 10 10 5 4 6 9 10 9 5 5 5 5 10 15 15 15 14 12 Class Distribution -------------------- 18% | Scout 14% | Mutant 12% | Scavenger-Mutant 8% | Bothacker-Scout 7% | Commander-Mutant 5% | Hacker-Mutant 4% | Infiltrator-Ninja 3% | Sprinter 3% | Skirmisher 3% | Scavenger-Skirmisher Dominant Class ---------------- Mutant | -10/Materials Mutant | -10/Mines Scavenger-Mutant | -10/Exiles Skirmisher | -9/Mines Scavenger-Skirmisher | -8/Materials Mutant | -8/Garrison Sprinter | -7/Factory Sprinter | -7/Garrison Sprinter | -7/Storage Scout | -6/Factory Scout | -6/Waste Scout | -6/Factory Scout | -6/Garrison Bothacker-Scout | -6/Factory Scout | -6/Lower Caves Scout | -6/Lower Caves Scavenger-Ninja | -6/Data Miner Scavenger-Ninja | -5/Proximity Caves Scout | -5/Factory Scout | -5/Waste Scout | -5/Factory Scavenger-Mutant | -5/Extension Commander-Mutant | -5/Cetus Commander-Mutant | -5/Archives Scavenger-Mutant | -5/Hub_04(d) Hacker-Mutant | -4/Factory Hacker-Mutant | -4/Waste Hacker-Mutant | -4/Factory Hacker-Scout | -3/Research Infiltrator-Ninja | -3/Testing Hacker-Ninja | -2/Research Infiltrator-Ninja | -2/Quarantine Alien-Ninja | -2/Section 7 Alien-Scout | -1/Access Resources | -11 -10 -10 -10 -9 -8 -8 -7 -7 -7 -6 -6 -6 -6 -6 -6 -6 -6 -5 -5 -5 -5 -5 -5 -5 -5 -4 -4 -4 -3 -3 -2 -2 -2 -1 ----------- Run | Yrd Mat Min Exi Min Mat Gar Fac Gar Sto Fac Was Fac Gar Fac Low Low Dat Pro Fac Was Fac Ext Cet Arc Hub Fac Was Fac Res Tes Res Qua Sec Acc Matter Collected 14684 | 426 935 313 . 233 725 603 659 247 58 469 127 686 135 1930 324 168 . 90 2520 . 104 748 164 104 211 646 . 458 612 55 521 75 . 338 Remotely . | . . . . . . . . . . . . . . . . . . . . . . . . . . . . . . . . . . . Salvage Created 19608 | 140 1349 52 . 27 976 933 950 347 99 998 . 1715 90 2786 211 84 . 37 2617 . 56 1452 169 354 577 1164 . 322 640 55 1063 . . 345 Parts 832 | 15 82 4 . . 61 43 36 17 5 52 . 62 4 92 6 5 . 2 69 . 6 57 4 25 25 39 . 11 27 2 47 . . 34 Haulers Intercepted 35 | . 2 . . . 4 . 5 . 2 3 . 6 . 5 1 . . . 5 . . . . . . . . 1 1 . . . . . Recyclers Shooed 12 | . . . . . . . 1 . . . . 2 . . . . . . 6 . . 1 . . . . . 2 . . . . . . Parts Field Recycled . | . . . . . . . . . . . . . . . . . . . . . . . . . . . . . . . . . . . Retrieved Matter . | . . . . . . . . . . . . . . . . . . . . . . . . . . . . . . . . . . . Parts Self-Destructed 18 | . . . . . . . . . . . . . . . 10 4 . 4 . . . . . . . . . . . . . . . . Prevented 9 | . . . . . . . . . . . . . . . . . . 9 . . . . . . . . . . . . . . . . Parts Restored . | . . . . . . . . . . . . . . . . . . . . . . . . . . . . . . . . . . . Kills | -11 -10 -10 -10 -9 -8 -8 -7 -7 -7 -6 -6 -6 -6 -6 -6 -6 -6 -5 -5 -5 -5 -5 -5 -5 -5 -4 -4 -4 -3 -3 -2 -2 -2 -1 ------- Run | Yrd Mat Min Exi Min Mat Gar Fac Gar Sto Fac Was Fac Gar Fac Low Low Dat Pro Fac Was Fac Ext Cet Arc Hub Fac Was Fac Res Tes Res Qua Sec Acc Combat Hostiles Destroyed 202 | 1 17 4 . 9 17 22 5 9 . 6 . 13 . 32 5 3 . . . . 2 20 2 1 11 8 . 5 1 . 7 . . 2 Melee 15 | . . . . . . . . 3 . . . 1 . 2 . 1 . . . . 2 3 . . . . . . 1 . . . . 2 Guns 36 | 1 6 . . . 2 7 . . . . . . . . . . . . . . . 12 . . . 1 . . . . 7 . . . Cannons 42 | . 6 . . . 7 6 1 . . . . . . . . . . . . . . 4 2 1 9 6 . . . . . . . . AOE 102 | . 4 4 . 9 7 9 4 6 . 6 . 12 . 29 5 2 . . . . . . . . . . . 5 . . . . . . Classes Destroyed 24 | 3 6 . . 1 1 2 1 . . . . 2 . 2 . 2 . 1 . . 1 1 . . . . . . . . . . . 1 Worker 43 | 1 9 1 . . . . 8 . . 4 . 4 . 10 . . . . 2 . . . . . . 1 . 2 1 . . . . . Builder 37 | . 4 . . . 1 . 7 . . 6 . 1 . 8 . . . . 3 . . . . . . 1 . 1 4 . 1 . . . Tunneler 10 | 4 . 1 . . 1 . 1 . . . . 1 . 2 . . . . . . . . . . . . . . . . . . . . Hauler 35 | . 2 . . . 4 . 5 . 2 3 . 6 . 5 1 . . . 5 . . . . . . . . 1 1 . . . . . Recycler 49 | . 7 . . . 2 . 3 . . 2 . 3 . 7 . . . . 14 . . . . . . 5 . 1 3 . 2 . . . Minesweeper 1 | . . . . . . . . . . . . . . . . . . 1 . . . . . . . . . . . . . . . . Mechanic 8 | . . . . . . . 1 . . 3 . 2 . 2 . . . . . . . . . . . . . . . . . . . . Operator 18 | . 1 . . . . . . . . 2 . 1 . 1 . . . . . . . . . 8 . . . . 1 2 1 . . 1 Watcher 36 | . 3 . . . 2 . 2 . . 2 . 5 . 4 . . . . 4 . . 3 1 . 4 2 . . 1 . 3 . . . Swarmer 46 | . 9 4 . . 6 6 4 4 . . . . . 3 . . . . . . . . . . 4 . . 5 1 . . . . . Cutter 2 | . . . . . . . . . . . . . . . . . . . . . 2 . . . . . . . . . . . . . Saboteur 1 | . . . . . . . . . . . . . . 1 . . . . . . . . . . . . . . . . . . . . Grunt 83 | 1 8 . . . 6 9 . 1 . 5 . 9 . 23 5 . . . . . . 12 . . 1 . . . . . 3 . . . Brawler 1 | . . . . . . . . . . . . . . 1 . . . . . . . . . . . . . . . . . . . . Duelist 5 | . . . . . . . . . . . . 1 . 4 . . . . . . . . . . . . . . . . . . . . Sentry 18 | . . . . . 5 2 . 2 . . . . . . . . . . . . . 6 . 1 1 1 . . . . . . . . Specialist 1 | . . . . . . . . . . . . 1 . . . . . . . . . . . . . . . . . . . . . . Hunter 10 | . . . . . . 2 . 1 . . . . . . . . . . . . . . . . 1 2 . . . . 4 . . . Programmer 19 | . . . . . . 3 1 1 . 1 . 2 . 1 . 1 . . . . . . . . 3 6 . . . . . . . . Heavy 1 | . . . . . . . . . . . . . . . . . . . . . . . . . . . . . . . . . . 1 Behemoth 4 | . . . . . . . . . . . . . . . . . . . . . . 2 . . 1 . . . . . . . . 1 Cetus Guard 2 | . . . . . . . . . . . . . . . . . . . . . . . 2 . . . . . . . . . . . Enhanced Grunt 1 | . . . . . . . . . . . . . . . . . . . . . . . . . 1 . . . . . . . . . Decomposer 1 | . . . . . . . . . . . . . . . . 1 . . . . . . . . . . . . . . . . . . Samaritan 1 | . . . . . . . . . . . . . . . . 1 . . . . . . . . . . . . . . . . . . Master Thief 2 | . . . . . . . . . . . . . . . . 2 . . . . . . . . . . . . . . . . . . Assembled 9 | . . . . 9 . . . . . . . . . . . . . . . . . . . . . . . . . . . . . . Best Kill Streak 17 | 4 9 3 . 7 3 5 6 6 1 10 . 10 . 17 6 1 . 1 6 . 2 3 2 2 5 5 . 5 4 1 3 . . 1 Combat Bots Only 8 | 1 7 3 . 7 3 5 4 6 . 2 . 5 . 8 5 1 . . . . 2 3 2 1 4 2 . 5 1 . 3 . . 1 Max Kills in Single Turn 9 | 1 3 1 . 4 2 4 3 6 1 4 . 9 . 2 2 2 . 1 1 . 1 1 1 1 1 2 . 5 1 1 2 . . 1 Gunslinging 1 | . 1 . . . . . . . . . . . . . . . . . . . . . . . . . . . . . . . . . Exploded 6 | . 2 1 . 4 2 4 3 6 . 1 . 5 . 2 2 1 . . . . . . . . . . . 5 . . . . . . Melee 1 | . . . . . . . . 1 . . . 1 . 1 . 1 . . . . 1 1 . . . . . . 1 . . . . 1 Uniques/NPCs Destroyed . | . . . . . . . . . . . . . . . . . . . . . . . . . . . . . . . . . . . Combat | -11 -10 -10 -10 -9 -8 -8 -7 -7 -7 -6 -6 -6 -6 -6 -6 -6 -6 -5 -5 -5 -5 -5 -5 -5 -5 -4 -4 -4 -3 -3 -2 -2 -2 -1 -------- Run | Yrd Mat Min Exi Min Mat Gar Fac Gar Sto Fac Was Fac Gar Fac Low Low Dat Pro Fac Was Fac Ext Cet Arc Hub Fac Was Fac Res Tes Res Qua Sec Acc Hostile Shots Fired 1963 | 3 85 15 . 7 75 80 99 89 31 37 . 74 58 86 2 . . . 46 . 16 156 24 3 165 187 . 250 62 12 55 57 133 56 Missed 804 | 2 22 4 . 2 24 19 56 39 27 22 . 35 42 45 1 . . . 13 . 4 56 8 . 32 45 . 105 35 8 21 34 72 31 Hits 1159 | 1 63 11 . 5 51 61 43 50 4 15 . 39 16 41 1 . . . 33 . 12 100 16 3 133 142 . 145 27 4 34 23 61 25 Melee 18 | . . . . 3 . . . . . . . 1 . . . . . . 2 . 12 . . . . . . . . . . . . . Projectile 1141 | 1 63 11 . 2 51 61 43 50 4 15 . 38 16 41 1 . . . 31 . . 100 16 3 133 142 . 145 27 4 34 23 61 25 AOE 2 | . . . . . . . . . . . . . . . . . . . . . . . . . . . . 1 1 . . . . . Critical Strikes 61 | . . . . . . 3 1 1 . . . 1 . . . . . . 2 . 4 6 1 . 17 16 . 3 1 . 1 1 3 . Actively Blocked 1 | . . . . . . . . . . . . . . . . . . . . . . . . . . . . . . . 1 . . . Part Disruptions 1 | . . . . . . . . . . . . . . . . . . . 1 . . . . . . . . . . . . . . . Damage Taken 21605 | 12 654 88 . 157 678 940 654 482 56 255 . 690 137 717 19 . . 48 593 . 482 2152 322 75 2424 2889 . 2347 740 132 1130 524 1546 662 Core 3416 | . 119 6 . 18 38 94 242 175 20 68 . 196 35 161 . . . 12 237 . 85 184 53 . 101 308 . 423 213 25 119 25 374 85 Absorbed by Shields 239 | . . . . . . . . 64 . . . . . . . . . . . . . 81 94 . . . . . . . . . . . Reduced by Siege Mode 230 | . . . . . . . . . . . . . . . . . . . . . . . . 8 85 137 . . . . . . . . Redirected to Shielding 264 | . . . . . . . . . . . . . . . . . . . . . . . . . . . . . 32 14 218 . . . Regen/Repaired (Parts) 2899 | . 61 . . . . . 36 . . . 2 38 . 63 . . . . . . . . . . . . . 119 259 . 113 589 1241 378 Core Remaining (%) 60 | 100 . . . 42 . 76 . . 37 . . . . . . . . 44 . . . . . . 34 . . 36 . 81 . . 63 95 Volleys Fired 1175 | 10 156 19 . 17 74 76 57 4 . 23 . 35 13 232 6 11 1 1 9 . 5 81 21 62 54 67 . 57 13 . 61 1 2 7 Largest 2 | 2 2 2 . 2 2 2 1 1 . 1 . 1 1 1 1 1 1 1 1 . 1 2 2 2 2 2 . 1 2 . 1 1 1 1 Hottest 203 | 40 100 100 . 100 150 100 40 45 . 85 . 85 5 85 43 85 5 5 85 . 85 180 134 134 134 203 . 98 103 . 120 130 130 130 Shots Fired 1585 | 20 258 25 . 22 123 123 58 4 . 22 . 35 13 231 6 11 1 1 9 . 5 161 35 66 100 108 . 60 17 . 61 1 2 7 Gun 494 | 20 172 6 . . 35 57 . . . . . . . . . . . . . . . 123 . . . 24 . 10 9 . 38 . . . Cannon 782 | . 54 14 . . 73 56 36 . . 1 . 7 . 119 . 1 . . 3 . 5 38 35 66 100 83 . 50 8 . 23 1 2 7 Launcher 162 | . 3 4 . 10 11 10 2 1 . 21 . 11 . 74 6 9 . . . . . . . . . . . . . . . . . . Special 147 | . 29 1 . 12 4 . 20 3 . . . 17 13 38 . 1 1 1 6 . . . . . . 1 . . . . . . . . Kinetic 590 | 20 172 6 . . 43 57 36 . . . . . . . . . . . . . . 63 14 4 47 53 . 28 9 . 38 . . . Thermal 724 | . 83 15 . 12 69 56 . . . 1 . 7 . 119 . 1 . . 3 . 5 98 21 62 53 54 . 32 . . 23 1 2 7 Explosive 162 | . 3 4 . 10 11 10 2 1 . 21 . 11 . 74 6 9 . . . . . . . . . . . . . . . . . . Electromagnetic 8 | . . . . . . . . . . . . . . . . . . . . . . . . . . . . . 8 . . . . . Robot Hit Streak 27 | 9 15 5 . 6 10 12 5 5 . 2 . 4 5 8 3 3 4 5 11 . . 27 7 10 9 12 . 5 3 . 5 . . . Robot Miss Streak 16 | 2 6 2 . 2 6 2 3 1 . 1 . 3 2 4 1 . . . . . . 4 4 4 5 3 . 4 2 . 16 . . . Penetration Max 2 | . . . . . . . . . . . . . . . . . . . . . . 1 . . . 2 . . . . 2 . . . Secondary Targets 1 | . 1 . . . . . . . . . . . . . . . . . . . . . . . . . . . . . . . . . Max Gunslinging Chain 1 | . 1 . . . . . . . . . . . . . . . . . . . . . . . . . . . . . . . . . Shots Hit Robots 1057 | 12 98 6 4 4 60 89 50 17 7 27 . 58 17 95 9 3 1 2 74 . 4 142 14 36 54 73 . 20 27 3 27 . . 24 Core Hits 672 | 6 54 6 . 18 37 45 16 16 1 45 . 49 2 142 15 8 . 1 33 . 2 53 7 16 19 30 . 9 9 2 26 . 1 4 Critical Kills 19 | . 1 . . . 1 1 1 . . . . . . . . . . . . . . 1 . 2 2 3 . . . . 7 . . . Critical Parts Destroyed 14 | 1 . . . . 2 1 4 . . . . . . . . . . . . . . 1 . . . . . . . . 5 . . . Critical Strikes 72 | 1 1 . . . 3 2 5 1 1 1 . 5 1 6 1 . . . 4 . . 9 2 2 4 7 . . 2 . 13 . . 1 Burn 4 | . . . . . . . . . . . . . . . . . . . . . . 4 . . . . . . . . . . . . Meltdown 10 | . 1 . . . 1 1 . . . . . . . . . . . . . . . . . 2 2 3 . . . . . . . . Destroy 15 | 1 . . . . . . . . . . . . . . . . . . . . . 2 . . . . . . . . 12 . . . Blast 10 | . . . . . . . . . . . . . . . . . . . . . . 2 2 . 2 4 . . . . . . . . Smash 8 | . . . . . 2 1 5 . . . . . . . . . . . . . . . . . . . . . . . . . . . Sever 22 | . . . . . . . . 1 1 1 . 5 1 6 1 . . . 4 . . 1 . . . . . . . . . . . 1 Impale 3 | . . . . . . . . . . . . . . . . . . . . . . . . . . . . . 2 . 1 . . . Melee Attacks 839 | . . . 4 . 6 20 50 27 18 71 . 116 17 189 6 5 . 2 114 . 26 18 . . 6 10 . . 32 21 34 7 13 27 Impact 56 | . . . . . 6 20 23 . . . . . . . . . . . 7 . . . . . . . . . . . . . . . Slashing 688 | . . . . . . . 25 27 18 70 . 116 17 189 6 5 . 2 107 . 26 18 . . 6 10 . . . . . 6 13 27 Piercing 88 | . . . . . . . . . . . . . . . . . . . . . . . . . . . . . 32 21 34 1 . . Sneak Attacks 133 | . . . 4 . 1 . 24 6 2 13 . 12 1 22 1 . . 1 27 . . . . . . 2 . . 9 3 3 . . 2 Combat Hostiles 2 | . . . . . . . . 1 . . . . . . . . . . . . . . . . . . . . . . . . . 1 Follow-up Attacks . | . . . . . . . . . . . . . . . . . . . . . . . . . . . . . . . . . . . Damage Inflicted 54754 | 149 1605 350 . 473 1929 2702 3222 1161 394 3549 . 5898 534 10431 1038 765 . 62 3667 . 166 4052 588 1128 1923 2721 . 1219 1856 270 952 . 1 1949 Guns 5255 | 149 788 12 . . 300 677 . . . . . . . . . . . . . . . 2416 . . . 588 . . 108 . 217 . . . Cannons 10376 | . 524 87 . . 994 924 257 . . . . . . 58 . . . . . . . 1070 588 1128 1923 1919 . 694 210 . . . . . Explosions 18235 | . 195 251 . 473 451 611 292 436 . 2053 . 3742 . 7406 789 686 . . 325 . . . . . . . . 525 . . . . . . Melee 20784 | . . . . . 184 490 2673 725 394 1496 . 2156 534 2967 249 79 . 62 3342 . 166 566 . . . 209 . . 1538 270 735 . . 1949 Ramming 6 | . . . . . . . . . . . . . . . . . . . . . . . . . . 5 . . . . . . 1 . Kinetic 6650 | 149 788 12 . . 371 677 257 . . . . . . . . . . . . . . 1299 278 83 792 1267 . 352 108 . 217 . . . Thermal 12874 | . 622 164 . . 923 924 . . . 68 . 2004 . 1141 . . . . 248 . . 2187 310 1045 1131 1240 . 867 . . . . . . Explosive 13894 | . 195 174 . 473 451 611 292 436 . 1940 . 1738 . 6032 789 686 . . 77 . . . . . . . . . . . . . . . Electromagnetic 546 | . . . . . . . . . . 45 . . . 291 . . . . . . . . . . . . . . 210 . . . . . Impact 2720 | . . . . . 184 490 1756 . . . . . . . . . . . 290 . . . . . . . . . . . . . . . Slashing 15521 | . . . . . . . 917 725 394 1496 . 2156 534 2967 249 79 . 62 3052 . 166 566 . . . 209 . . . . . . . 1949 Piercing 2543 | . . . . . . . . . . . . . . . . . . . . . . . . . . . . . 1538 270 735 . . . Highest Corruption 15 | . 1 1 1 1 . 2 1 3 3 4 . 2 2 5 5 5 5 5 . 6 6 . . . 2 6 14 15 1 1 4 2 . . Average Corruption 2 | . 1 1 1 1 . 1 1 1 3 3 . 1 2 1 5 5 5 5 . 6 4 . . . 1 3 10 11 1 1 3 1 . . Corruption Purged 23 | . . . . . . . . . . 4 . . . 2 . . . . . . 7 . . . . . . 5 . 1 4 . . . Corruption Blocked . | . . . . . . . . . . . . . . . . . . . . . . . . . . . . . . . . . . . Effects 208 | . 12 14 10 4 . 8 5 2 3 18 . 7 1 25 12 12 2 10 . 1 6 . . . 6 12 1 29 1 3 2 2 . . Message Errors 67 | . 2 7 2 1 . 5 3 2 1 7 . 3 1 9 4 7 . 4 . 1 1 . . . . 1 . 3 1 . 1 1 . . Matter Fused 52 | . 6 5 3 1 . 1 . . 1 4 . 2 . 4 4 1 2 1 . . 2 . . . 2 2 1 8 . . 1 1 . . Heat Flow Errors 32 | . 1 2 1 1 . . 1 . 1 2 . 2 . 3 2 1 . 3 . . 1 . . . 3 2 . 5 . 1 . . . . Energy Discharges 14 | . . . . . . . . . . . . . . 4 1 . . 1 . . 1 . . . . 2 . 4 . 1 . . . . Parts Rejected 2 | . . . . . . . . . . . . . . . . . . . . . . . . . . 1 . 1 . . . . . . Parts Fused 4 | . 1 . . . . 1 . . . . . . . . . 2 . . . . . . . . . . . . . . . . . . Data Loss (minor) 20 | . . . 4 . . . . . . 2 . . . 4 . 1 . 1 . . 1 . . . 1 3 . 2 . 1 . . . . Data Loss (major) 3 | . 1 . . . . . . . . . . . . . 1 . . . . . . . . . . . . 1 . . . . . . Misfires 4 | . . . . . . . 1 . . . . . . . . . . . . . . . . . . . . 3 . . . . . . Alerts 4 | . . . . 1 . . . . . 2 . . . . . . . . . . . . . . . . . 1 . . . . . . Misdirections 1 | . . . . . . . . . . . . . . . . . . . . . . . . . . . . 1 . . . . . . Weapon Failures 5 | . 1 . . . . 1 . . . 1 . . . 1 . . . . . . . . . . . 1 . . . . . . . . Overload Shots . | . . . . . . . . . . . . . . . . . . . . . . . . . . . . . . . . . . . Overflow Damage 4804 | . . 37 . 10 166 77 1455 32 25 233 . 576 20 649 . 17 . . 446 . 8 40 . 56 32 44 . 186 521 41 133 . . . Projectiles 293 | . . . . . 19 . 4 . . . . . . . . . . . . . . 29 . 56 32 44 . 100 9 . . . . . Explosions 804 | . . 37 . 10 . 8 . . . 45 . 302 . 294 . 17 . . 5 . . . . . . . . 86 . . . . . . Melee 3707 | . . . . . 147 69 1451 32 25 188 . 274 20 355 . . . . 441 . 8 11 . . . . . . 512 41 133 . . . Knockbacks 31 | . . . . . 1 . 10 . . . . . . . . . . . . . . 4 . . 7 5 . 4 . . . . . . Impact 7 | . . . . . . . 7 . . . . . . . . . . . . . . . . . . . . . . . . . . . Kinetic 22 | . . . . . 1 . 2 . . . . . . . . . . . . . . 3 . . 7 5 . 4 . . . . . . Secondary 2 | . . . . . . . 1 . . . . . . . . . . . . . . 1 . . . . . . . . . . . . Self-Inflicted Damage 296 | . . . . 29 14 30 101 73 . . . . . . . . . . . . . . . . . . . 49 . . . . . . Shots 11 | . . . . 3 1 1 2 3 . . . . . . . . . . . . . . . . . . . 1 . . . . . . Rammed 4 | . . . . . . . . . . . . . . . . . . . . . . . . . 2 1 . . . . . . 1 . Targets Rammed 5 | 1 . . . . . . . . . . . . . . . . . . . . . . . . 2 1 . . . . . . 1 . Kicked 1 | 1 . . . . . . . . . . . . . . . . . . . . . . . . . . . . . . . . . . Crushed . | . . . . . . . . . . . . . . . . . . . . . . . . . . . . . . . . . . . Highest Temperature 485 | . 272 87 219 239 270 421 156 18 104 257 . 241 3 305 139 116 . 267 485 . 94 311 . 12 213 215 . 464 64 156 274 4 151 273 Average Temperature 79 | . 40 23 119 40 75 152 11 6 27 69 . 50 3 69 52 33 . 112 115 . 33 113 . 9 47 57 . 164 24 70 76 3 42 146 Received Heat Transfer 2677 | 6 219 . . 20 261 216 165 42 27 54 . 78 45 168 9 . . . 38 . . 618 4 . 135 146 . 81 18 12 54 81 153 27 Thermoelectric Energy+ 89 | . . . . . . . . . . . . . . . . . . . . . . . . . . . . . . . . . . 89 Effects 38 | . . . . 1 . 9 . . . 3 . . . . . . . 1 7 . . 1 . . . . . 11 . . 5 . . . Shutdowns 8 | . . . . . . 4 . . . . . . . . . . . . 1 . . . . . . . . 3 . . . . . . Energy Bleed 10 | . . . . . . . . . . . . . . . . . . 1 2 . . 1 . . . . . 4 . . 2 . . . Interference 16 | . . . . 1 . 3 . . . 3 . . . . . . . . 3 . . . . . . . . 3 . . 3 . . . Short Circuit 2 | . . . . . . 1 . . . . . . . . . . . . . . . . . . . . . 1 . . . . . . Damage (minor) 2 | . . . . . . 1 . . . . . . . . . . . . 1 . . . . . . . . . . . . . . . Siege Activations 10 | . . . . . . . . . . . . . . . . . . . . . . . 1 1 4 4 . . . . . . . . Total Turns 192 | . . . . . . . . . . . . . . . . . . . . . . . 6 6 99 81 . . . . . . . . Longest Duration 86 | . . . . . . . . . . . . . . . . . . . . . . . 6 6 86 32 . . . . . . . . Martial Activations . | . . . . . . . . . . . . . . . . . . . . . . . . . . . . . . . . . . . Shielding Activations . | . . . . . . . . . . . . . . . . . . . . . . . . . . . . . . . . . . . Robots Disrupted . | . . . . . . . . . . . . . . . . . . . . . . . . . . . . . . . . . . . Combat Hostiles . | . . . . . . . . . . . . . . . . . . . . . . . . . . . . . . . . . . . Robots Corrupted 14 | . . . . . 1 1 10 . . . . . . 2 . . . . . . . . . . . . . . . . . . . . Combat Hostiles 2 | . . . . . 1 . . . . . . . . 1 . . . . . . . . . . . . . . . . . . . . Parts Fried 35 | . . . . . 1 . 18 . . . . . . 9 . . . . . . . 1 1 . . . . . 5 . . . . . Impact Corruptions 41 | . . . . . 3 2 34 . . . . . . . . . . . . . . 2 . . . . . . . . . . . . Robots Melted 11 | . 1 . . . 1 1 . . . . . . . . . . . . . . . 1 . 2 2 3 . . . . . . . . Combat Hostiles 5 | . 1 . . . . . . . . . . . . . . . . . . . . 1 . . 2 1 . . . . . . . . Parts Melted 35 | . 3 . . . 3 . . . . . . . . 2 . . . . . . . 6 . 3 9 9 . . . . . . . . Heat Transferred 16255 | . 1273 285 . . 1369 1332 . . . 25 . 1350 . 874 . . . . 162 . . 3631 333 1650 1510 1611 . 850 . . . . . . Parts Sabotaged 3 | . . . . . . . . . . . . 3 . . . . . . . . . . . . . . . . . . . . . . Parts Stolen . | . . . . . . . . . . . . . . . . . . . . . . . . . . . . . . . . . . . Parts Stripped . | . . . . . . . . . . . . . . . . . . . . . . . . . . . . . . . . . . . Power Chain Reactions . | . . . . . . . . . . . . . . . . . . . . . . . . . . . . . . . . . . . Alert | -11 -10 -10 -10 -9 -8 -8 -7 -7 -7 -6 -6 -6 -6 -6 -6 -6 -6 -5 -5 -5 -5 -5 -5 -5 -5 -4 -4 -4 -3 -3 -2 -2 -2 -1 ------- Run | Yrd Mat Min Exi Min Mat Gar Fac Gar Sto Fac Was Fac Gar Fac Low Low Dat Pro Fac Was Fac Ext Cet Arc Hub Fac Was Fac Res Tes Res Qua Sec Acc Maximum Alert Level 5 | . 2 1 . . 1 4 3 3 2 2 1 5 4 5 . . . . 1 . . 1 1 1 . . . 1 . . . . 5 5 Low Security (%) 57 | 100 51 96 . 100 95 6 . . . 35 86 5 . . . . . . 74 100 100 84 22 96 100 100 100 59 100 100 100 100 82 . Level 1 16 | . 43 3 . . 4 46 . . . 42 13 8 . 18 . . . . 25 . . 15 77 3 . . . 40 . . . . . . Level 2 6 | . 5 . . . . 12 37 . 100 21 . 4 . 18 . . . . . . . . . . . . . . . . . . . . Level 3 8 | . . . . . . 27 62 100 . . . 13 . 11 . . . . . . . . . . . . . . . . . . . . Level 4 4 | . . . . . . 6 . . . . . 53 100 4 . . . . . . . . . . . . . . . . . . . 3 Level 5 5 | . . . . . . . . . . . . 14 . 45 . . . . . . . . . . . . . . . . . . . . High Security . | . . . . . . . . . . . . . . 1 . . . . . . . . . . . . . . . . . . . . Max Security 1 | . . . . . . . . . . . . . . . . . . . . . . . . . . . . . . . . . 17 96 Peak Influence 4407 | 26 419 214 . 17 232 1282 1033 1091 677 599 209 1729 1321 4407 . . . . 388 125 80 277 282 211 138 135 26 253 68 56 113 115 1702 2177 Initial 1210 | . . 163 . . . 150 672 721 538 303 209 97 1210 681 . . . . . 125 80 3 136 79 . 60 26 11 54 . . 30 9 1100 Average 437 | 6 205 65 . 1 63 571 719 944 581 265 177 1137 1298 1847 . . . . 98 120 26 90 220 80 61 34 22 147 15 19 52 54 332 1850 Influence Increases 21979 | 46 1194 179 . 100 787 1142 1861 415 259 1230 . 2991 158 4978 174 26 . 49 1007 . 131 948 300 260 925 409 . 473 325 189 359 186 291 587 Destroy 0b10 Robot/C 5385 | 20 340 80 . . 340 440 440 180 40 120 . 860 . 495 135 15 . 45 360 . 30 405 120 60 345 120 . 75 15 . 105 . 40 160 Destroy 0b10 Robot/NC 1150 | 25 130 10 . . 50 10 145 . 10 110 . 140 5 152 4 . . 4 124 . . 20 8 32 20 36 . 20 44 8 28 . . 15 Destroy Leader 1038 | . 80 10 . . 92 30 94 10 4 28 . 244 . 82 8 8 . . 84 . 8 38 . . 98 44 . 10 4 . 22 . . 40 Allied During Kill 1185 | . . . . . . . 14 . 7 . . 441 . 5 27 3 . . 32 . . 142 128 92 230 3 . . . . . . 10 51 Successful Hack 832 | . 90 . . . 54 28 135 . 11 169 . 28 14 50 . . . . 37 . 3 29 6 . . 16 . 30 32 9 51 15 25 . Select Force Hacks 710 | . 60 . . . 30 . 180 . . 120 . 30 . 214 . . . . . . . . . . 38 . . 38 . . . . . . Disable Machine 3999 | . 420 60 . 45 45 . 105 . 30 150 . 660 . 1752 . . . . 96 . 24 12 . 36 72 36 . 84 12 168 24 48 75 45 Anti-Garrison Action 1039 | . . . . . . 500 . 100 . . . . 100 339 . . . . . . . . . . . . . . . . . . . . Destroy Structure 2687 | 1 74 19 . 55 86 89 88 20 7 143 . 228 24 1145 . . . . 70 . 30 38 38 40 98 58 . 84 14 4 105 12 36 81 Partial Spotted 684 | . . . . . . . 135 15 60 105 . 15 15 156 . . . . 48 . . . . . . . . . 36 . 12 27 60 . Lose Combat Pursuer 3270 | . . . . . 90 45 525 90 90 285 . 345 . 588 . . . . 156 . 36 264 . . 24 96 . 132 168 . 12 84 45 195 Influence Decreases 21944 | 46 775 598 . 100 555 92 2113 339 698 1298 460 1401 589 1869 1862 763 1982 49 649 243 238 711 347 458 800 457 61 386 428 187 307 222 169 692 Entered New Map 9276 | . . 256 . . . 82 610 309 568 364 390 42 519 617 1632 517 1982 . . 233 35 5 109 119 . 65 51 5 49 . 2 24 9 682 Time Decay 8272 | 46 595 342 . 73 413 . 538 . 90 474 70 574 . 692 230 246 . 14 373 10 163 592 198 339 468 262 10 301 369 187 265 198 140 . Search Patrol Dispatched 100 | . . . . . . . . . . 100 . . . . . . . . . . . . . . . . . . . . . . . . Lost Part 815 | . 20 . . 27 23 10 30 30 . 20 . 50 10 50 . . . . 80 . 40 85 . . 70 130 . 80 . . 30 . 20 10 Lost Ally 1512 | . 10 . . . . . 260 . 40 40 . 460 60 60 . . . 35 196 . . 29 40 . 262 . . . 10 . 10 . . . Purge Threat 1969 | . 150 . . . 119 . 675 . . 300 . 275 . 450 . . . . . . . . . . . . . . . . . . . . Squads Dispatched 217 | . 4 . . . 5 . 28 . 4 19 . 24 . 44 . . . . 14 . 5 . . . 9 5 . 5 3 4 9 5 10 20 Investigation 52 | . 3 . . . 2 . 9 . . 8 . 4 . 15 . . . . 2 . 1 . . . 2 . . 2 1 . 2 1 . . Extermination 50 | . . . . . . . 6 . . 7 . 6 . 8 . . . . 6 . 1 . . . 2 3 . 2 . 3 3 2 1 . Reinforcement 40 | . 1 . . . . . 2 . 2 3 . 3 . 6 . . . . 4 . 3 . . . 4 2 . 1 2 1 1 2 3 . Assault 49 | . . . . . . . 1 . 2 . . 3 . 15 . . . . 2 . . . . . . . . . . . . . 6 20 Garrison 26 | . . . . . 3 . 10 . . 1 . 8 . . . . . . . . . . . . 1 . . . . . 3 . . . Intercept . | . . . . . . . . . . . . . . . . . . . . . . . . . . . . . . . . . . . Searches Triggered 1 | . . . . . . . . . . 1 . . . . . . . . . . . . . . . . . . . . . . . . Unchained Authorized 3 | . . . . . . . . . . . . . . . . . . . 1 . . . . . 1 1 . . . . . . . . Data Miner Redirects 6 | . . . . . . . . . . . . . . . . . . . 4 . . . . . . . . 1 . . 1 . . . Construction Impeded 7 | . . . . . . . . . . 1 . . . 2 . . . . 1 . . . . . . 2 . 1 . . . . . . Haulers Reinforced 6 | . . . . . . . 1 . 1 . . 1 . 2 . . . . . . . . . . . . . . 1 . . . . . Active Scanning Responses . | . . . . . . . . . . . . . . . . . . . . . . . . . . . . . . . . . . . Cargo Convoy Interrupts 3 | . . . . . . . . . . 1 . 1 . 1 . . . . . . . . . . . . . . . . . . . . Stealth | -11 -10 -10 -10 -9 -8 -8 -7 -7 -7 -6 -6 -6 -6 -6 -6 -6 -6 -5 -5 -5 -5 -5 -5 -5 -5 -4 -4 -4 -3 -3 -2 -2 -2 -1 --------- Run | Yrd Mat Min Exi Min Mat Gar Fac Gar Sto Fac Was Fac Gar Fac Low Low Dat Pro Fac Was Fac Ext Cet Arc Hub Fac Was Fac Res Tes Res Qua Sec Acc Distress Signals 41 | . . . . 2 5 . 1 . . 4 . . . 2 . . . . 3 . 1 1 2 . 1 2 . 3 7 2 2 1 2 . Communications Jammed 75 | . . . . . . . . . . . . . . . . . . . . . . . . . . . . . . . 26 6 23 20 Distress Signals 47 | . . . . . . . . . . . . . . . . . . . . . . . . . . . . . . . 10 6 17 14 Times Spotted 855 | 1 26 4 . 9 35 21 66 21 9 33 . 58 8 96 12 4 . . 46 4 6 44 9 42 37 30 6 31 33 22 31 32 55 24 Peak Tracking Total 19 | 1 7 3 . 5 6 5 11 10 8 11 . 11 3 9 5 3 . . 11 4 3 6 5 1 5 6 6 10 8 6 8 9 19 15 Tactical Retreats 160 | . . . . 1 6 1 15 3 3 13 . 18 . 34 . . . . 6 . 2 9 . . 1 2 . 6 11 5 4 7 9 4 ECM-based Alert Blocks 83 | . . . . . . . . . . . . . . . . . . . . . . . . . . . . . 4 13 8 20 38 . Traps | -11 -10 -10 -10 -9 -8 -8 -7 -7 -7 -6 -6 -6 -6 -6 -6 -6 -6 -5 -5 -5 -5 -5 -5 -5 -5 -4 -4 -4 -3 -3 -2 -2 -2 -1 ------- Run | Yrd Mat Min Exi Min Mat Gar Fac Gar Sto Fac Was Fac Gar Fac Low Low Dat Pro Fac Was Fac Ext Cet Arc Hub Fac Was Fac Res Tes Res Qua Sec Acc Traps Triggered 51 | . . . . . . 3 3 5 . 4 . 4 . 8 . . . 1 5 . 1 2 . . 2 3 . 1 7 1 1 . . . Indirectly 1 | . . . . . . . . . . . . . . 1 . . . . . . . . . . . . . . . . . . . . Trap Hack Attempts 23 | . 23 . . . . . . . . . . . . . . . . . . . . . . . . . . . . . . . . . Triggered . | . . . . . . . . . . . . . . . . . . . . . . . . . . . . . . . . . . . Disarmed . | . . . . . . . . . . . . . . . . . . . . . . . . . . . . . . . . . . . Reprogrammed 2 | . 2 . . . . . . . . . . . . . . . . . . . . . . . . . . . . . . . . . Reused . | . . . . . . . . . . . . . . . . . . . . . . . . . . . . . . . . . . . Traps Extracted . | . . . . . . . . . . . . . . . . . . . . . . . . . . . . . . . . . . . Installed . | . . . . . . . . . . . . . . . . . . . . . . . . . . . . . . . . . . . Triggered . | . . . . . . . . . . . . . . . . . . . . . . . . . . . . . . . . . . . Most Traps Carried 5 | . . 5 5 5 5 5 . . . . . . . . . . . . . . . . . . . . . . . . . . . . Objects Rigged 1 | . . . . . . . . . . . . . . 1 . . . . . . . . . . . . . . . . . . . . Machines | -11 -10 -10 -10 -9 -8 -8 -7 -7 -7 -6 -6 -6 -6 -6 -6 -6 -6 -5 -5 -5 -5 -5 -5 -5 -5 -4 -4 -4 -3 -3 -2 -2 -2 -1 ---------- Run | Yrd Mat Min Exi Min Mat Gar Fac Gar Sto Fac Was Fac Gar Fac Low Low Dat Pro Fac Was Fac Ext Cet Arc Hub Fac Was Fac Res Tes Res Qua Sec Acc Machines Disabled 315 | . 29 4 . 3 3 2 7 2 2 10 . 44 1 149 . . . . 8 . 2 1 . 3 6 3 . 7 1 14 2 4 5 3 Max in Single Turn 19 | . 2 1 . 1 1 1 5 1 1 4 . 19 1 7 . . . . 3 . 1 1 . . 1 1 . 4 1 1 1 1 1 1 Garrison Access 12 | . . . . . . . 1 . . . . 1 . 4 . . . . 4 . . . . . 1 . . . . . 1 . . . Garrison Relay 5 | . . . . . . 2 . 2 . . . . 1 . . . . . . . . . . . . . . . . . . . . . Network Hub 2 | . . . . . . . . . . . . . . . . . . . . . . . . . 2 . . . . . . . . . Machines Repaired . | . . . . . . . . . . . . . . . . . . . . . . . . . . . . . . . . . . . Machines Dismantled . | . . . . . . . . . . . . . . . . . . . . . . . . . . . . . . . . . . . Machines Sabotaged 1 | . . . . . . . . . . . . . . . . . . . . . . . . . 1 . . . . . . . . . Overloaded Fab Kills 9 | . . . . . . . . . . . . . . 8 . . . . . . . . . . . . . 1 . . . . . . Hacking | -11 -10 -10 -10 -9 -8 -8 -7 -7 -7 -6 -6 -6 -6 -6 -6 -6 -6 -5 -5 -5 -5 -5 -5 -5 -5 -4 -4 -4 -3 -3 -2 -2 -2 -1 --------- Run | Yrd Mat Min Exi Min Mat Gar Fac Gar Sto Fac Was Fac Gar Fac Low Low Dat Pro Fac Was Fac Ext Cet Arc Hub Fac Was Fac Res Tes Res Qua Sec Acc Machines Accessed 231 | . 10 1 5 . 13 2 39 1 2 28 . 9 3 32 1 1 4 1 17 . 3 6 1 1 5 5 . 8 8 3 11 7 4 . Terminals 123 | . 7 1 . . 10 2 16 1 2 14 . 4 3 15 1 . . 1 9 . 2 5 1 . 4 3 . 3 4 1 6 5 3 . Fabricators 23 | . . . . . . . 6 . . 6 . 1 . 5 . . . . 2 . 1 . . . . . . 1 1 . . . . . Repair Stations 18 | . 1 . . . 1 . 4 . . 1 . . . 3 . . . . 1 . . . . . . 1 . 2 1 . 2 1 . . Recycling Units 18 | . 2 . . . . . 5 . . 4 . . . 3 . . . . 1 . . 1 . . . . . 2 . . . . . . Scanalyzers 14 | . . . . . 1 . 4 . . 1 . . . 2 . . . . 1 . . . . . . . . . 1 1 1 1 1 . Garrison Access 24 | . . . . . 1 . 4 . . 2 . 4 . 4 . . . . 3 . . . . . 1 1 . . 1 1 2 . . . Total Hacks 697 | . 37 2 50 . 37 2 89 2 5 64 . 23 7 80 1 1 33 1 29 . 15 20 1 25 10 18 . 21 44 15 42 13 10 . Successful 422 | . 23 2 50 . 26 2 45 . 3 32 . 18 1 48 1 1 33 1 19 . 5 7 1 25 2 10 . 10 22 6 18 7 4 . Failed 272 | . 14 . . . 10 . 44 2 2 32 . 5 6 31 . . . . 10 . 10 13 . . 8 8 . 11 22 9 24 6 5 . Catastrophic 50 | . 1 . . . . . 9 . 1 1 . 1 . 7 . . . . 3 . 3 1 . . 4 1 . 4 5 1 7 . 1 . Database Lockouts 3 | . . . . . 1 . . . . . . . . 1 . . . . . . . . . . . . . . . . . . 1 . Manual 307 | . 20 . 1 . 21 . 58 . 5 33 . 9 . 41 . . . . 12 . 7 16 1 . 8 9 . 18 17 10 15 6 . . Terminals 361 | . 29 2 . . 31 2 39 2 5 37 . 11 7 41 1 . . 1 15 . 7 18 1 . 9 16 . 6 25 12 28 9 7 . Fabricators 56 | . . . . . . . 14 . . 10 . 1 . 13 . . . . 5 . 8 . . . . . . 3 2 . . . . . Repair Stations 47 | . 5 . . . 2 . 9 . . 2 . . . 5 . . . . 2 . . . . . . 1 . 8 6 . 6 1 . . Recycling Units 28 | . 3 . . . . . 8 . . 5 . . . 4 . . . . 2 . . 2 . . . . . 4 . . . . . . Scanalyzers 35 | . . . . . 3 . 5 . . 4 . . . 3 . . . . 1 . . . . . . . . . 6 2 5 3 3 . Garrison Access 61 | . . . . . 1 . 14 . . 6 . 11 . 14 . . . . 4 . . . . . 1 1 . . 5 1 3 . . . Terminal Hacks 231 | . 13 2 50 . 13 2 15 . . 10 . 4 1 17 1 1 33 1 5 . 1 2 1 25 . 5 . 2 10 3 6 5 3 . Record 123 | . 4 2 49 . 9 . 2 . . 1 . . . 6 1 . 11 1 2 . . 1 . 25 . 3 . . 4 . . 2 . . Part Schematic 18 | . . . . . . . 1 . . 2 . . . 1 . . 13 . 1 . . . . . . . . . . . . . . . Robot Schematic 7 | . . . . . . . . . . . . . . 1 . . 6 . . . . . . . . . . . . . . . . . Robot Analysis 4 | . 3 . . . . . 1 . . . . . . . . . . . . . . . . . . . . . . . . . . . Prototype ID Bank 10 | . . . . . . . 2 . . 1 . 2 . . . . 3 . . . . . . . . . . . 1 1 . . . . Open Door 5 | . . . . . . . . . . . . . . . . 1 . . . . . . 1 . . . . . . . . 1 2 . Open DSF 1 | . . . . . . . 1 . . . . . . . . . . . . . . . . . . . . . . . . . . . Branch Access Points 4 | . . . . . . . 1 . . 1 . . . 1 . . . . . . . . . . . . . . 1 . . . . . Emergency Access Points 1 | . . . . . . 1 . . . . . . . . . . . . . . . . . . . . . . . . . . . . Machine Index 1 | . . . . . . . . . . . . . . . . . . . . . . . . . . . . . . . 1 . . . Terminal Index 6 | . . . . . 1 . 1 . . . . 1 . . . . . . . . . . . . . . . . 1 1 1 . . . Scanalyzer Index 2 | . . . . . 1 . . . . 1 . . . . . . . . . . . . . . . . . . . . . . . . Unreport Threat 9 | . 1 . . . 1 . 2 . . 2 . . . 3 . . . . . . . . . . . . . . . . . . . . Locate Traps 6 | . 3 . . . . . . . . . . . . . . . . . . . 1 1 . . . . . . . . 1 . . . Maintenance Status 1 | . . . . . . . . . . . . . . . . . . . . . . . . . . . . . . . 1 . . . Recall Extermination 4 | . . . . . . . . . . . . . . 2 . . . . 1 . . . . . . . . . . . 1 . . . Hauler Manifests 12 | . 2 . . . 1 . 2 . . 1 . 1 . 1 . . . . . . . . . . . 1 . 1 . . 1 1 . . Registered Components 7 | . . . . . . . 1 . . 1 . . . 1 . . . . 1 . . . . . . 1 . 1 1 . . . . . Registered Prototypes 2 | . . . . . . . 1 . . . . . . 1 . . . . . . . . . . . . . . . . . . . . Zone Layout 3 | . . . . . . . . . . . . . . . . . . . . . . . . . . . . . 2 . . 1 . . Garrison Registry 2 | . . . . . . 1 . . . . . . 1 . . . . . . . . . . . . . . . . . . . . . Proto ID Catalog 1 | . . . 1 . . . . . . . . . . . . . . . . . . . . . . . . . . . . . . . Protovariant Controls 1 | . . . . . . . . . . . . . . . . . . . . . . . . . . . . . . 1 . . . . Activate Exoskeleton 1 | . . . . . . . . . . . . . . . . . . . . . . . . . . . . . . . . . 1 . Fabricator Hacks 8 | . . . . . . . . . . . . . . 2 . . . . 4 . 2 . . . . . . . . . . . . . Load Schematic 6 | . . . . . . . . . . . . . . 2 . . . . 2 . 2 . . . . . . . . . . . . . Build 2 | . . . . . . . . . . . . . . . . . . . 2 . . . . . . . . . . . . . . . Repair Station Hacks 12 | . 2 . . . 1 . 2 . . 1 . . . 2 . . . . . . . . . . . . . . 4 . . . . . Scan Component 6 | . 1 . . . . . 1 . . 1 . . . 1 . . . . . . . . . . . . . . 2 . . . . . Repair 5 | . 1 . . . . . 1 . . . . . . 1 . . . . . . . . . . . . . . 2 . . . . . Refit 1 | . . . . . 1 . . . . . . . . . . . . . . . . . . . . . . . . . . . . . Recycling Unit Hacks 2 | . . . . . . . 1 . . . . . . . . . . . . . . . . . . . . 1 . . . . . . Retrieve Matter 1 | . . . . . . . . . . . . . . . . . . . . . . . . . . . . 1 . . . . . . Retrieve Components 1 | . . . . . . . 1 . . . . . . . . . . . . . . . . . . . . . . . . . . . Scanalyzer 14 | . . . . . 1 . 1 . . 2 . . . 2 . . . . . . . . . . . . . . 3 . 4 . 1 . Insert Component 2 | . . . . . . . . . . . . . . . . . . . . . . . . . . . . . . . 2 . . . Analyze 2 | . . . . . . . . . . . . . . . . . . . . . . . . . . . . . . . 2 . . . Retrieve Study 10 | . . . . . 1 . 1 . . 2 . . . 2 . . . . . . . . . . . . . . 3 . . . 1 . Garrison Access Hacks 36 | . . . . . 1 . 6 . . 3 . 8 . 7 . . . . 4 . . . . . 1 1 . . 1 1 3 . . . Unlock Access 3 | . . . . . 1 . 1 . . . . 1 . . . . . . . . . . . . . . . . . . . . . . Seal Access 8 | . . . . . . . 1 . . . . 1 . 1 . . . . 3 . . . . . 1 . . . . . 1 . . . Coupler Status 25 | . . . . . . . 4 . . 3 . 6 . 6 . . . . 1 . . . . . . 1 . . 1 1 2 . . . Unauthorized Hacks 118 | . 8 . . . 10 . 20 . 3 16 . 5 . 18 . . . . 6 . 2 5 . . 1 4 . 7 4 2 5 2 . . Terminals 59 | . 5 . . . 9 . 6 . 3 5 . 2 . 4 . . . . 4 . 1 4 . . 1 3 . 2 4 2 4 . . . Track 3 | . . . . . . . . . 1 . . . . . . . . . . . . 1 . . . . . 1 . . . . . . Assimilate 10 | . 2 . . . . . 2 . . 1 . . . 1 . . . . 1 . 1 . . . . . . . 1 . 1 . . . Botnet 29 | . 3 . . . 3 . 3 . 1 3 . 2 . 2 . . . . 2 . . 2 . . . 2 . 1 2 1 2 . . . Detonate 1 | . . . . . . . . . . . . . . 1 . . . . . . . . . . . . . . . . . . . . Disrupt 1 | . . . . . . . . . . . . . . . . . . . . . . 1 . . . . . . . . . . . . Operators 9 | . . . . . 1 . 1 . 1 1 . . . . . . . . 1 . . . . . . 1 . . 1 1 1 . . . Skim 5 | . . . . . 5 . . . . . . . . . . . . . . . . . . . . . . . . . . . . . Sabotage 1 | . . . . . . . . . . . . . . . . . . . . . . . . . 1 . . . . . . . . . Fabricators 18 | . . . . . . . 5 . . 5 . 1 . 4 . . . . 1 . 1 . . . . . . 1 . . . . . . Prioritize 2 | . . . . . . . . . . . . . . . . . . . 1 . 1 . . . . . . . . . . . . . Liberate 2 | . . . . . . . 2 . . . . . . . . . . . . . . . . . . . . . . . . . . . Fabnet 7 | . . . . . . . 2 . . 5 . . . . . . . . . . . . . . . . . . . . . . . . Haulers 2 | . . . . . . . 1 . . . . 1 . . . . . . . . . . . . . . . . . . . . . . Overload 3 | . . . . . . . . . . . . . . 2 . . . . . . . . . . . . . 1 . . . . . . Recompile 2 | . . . . . . . . . . . . . . 2 . . . . . . . . . . . . . . . . . . . . Repair Stations 8 | . . . . . . . 1 . . . . . . 2 . . . . . . . . . . . 1 . 2 . . 1 1 . . Mechanics 2 | . . . . . . . . . . . . . . . . . . . . . . . . . . 1 . 1 . . . . . . Patch 6 | . . . . . . . 1 . . . . . . 2 . . . . . . . . . . . . . 1 . . 1 1 . . Recycling Units 15 | . 3 . . . . . 1 . . 4 . . . 3 . . . . 1 . . 1 . . . . . 2 . . . . . . Recyclers 2 | . . . . . . . . . . . . . . . . . . . 1 . . . . . . . . 1 . . . . . . Mask 3 | . 1 . . . . . . . . . . . . . . . . . . . . 1 . . . . . 1 . . . . . . Tunnel 10 | . 2 . . . . . 1 . . 4 . . . 3 . . . . . . . . . . . . . . . . . . . . Scanalyzers 7 | . . . . . 1 . 4 . . . . . . 1 . . . . . . . . . . . . . . . . . 1 . . Researchers 1 | . . . . . . . . . . . . . . . . . . . . . . . . . . . . . . . . 1 . . Extract 6 | . . . . . 1 . 4 . . . . . . 1 . . . . . . . . . . . . . . . . . . . . Garrison Access 11 | . . . . . . . 3 . . 2 . 2 . 4 . . . . . . . . . . . . . . . . . . . . Restock 7 | . . . . . . . 2 . . 2 . 1 . 2 . . . . . . . . . . . . . . . . . . . . Eject 4 | . . . . . . . 1 . . . . 1 . 2 . . . . . . . . . . . . . . . . . . . . Data Cores Recovered 2 | . . . . . . . . . . . . . . . . . . . . . . . . . . . . . 1 1 . . . . Used 1 | . . . . . . . . . . . . . . . . . . . . . . . . . . . . . 1 . . . . . Hacking Detections 164 | . 8 1 . . 12 1 31 1 2 22 . 8 3 26 1 . . . 12 . 3 6 . . 3 1 . 5 2 3 9 2 2 . Full Trace Events 13 | . 1 . . . 1 . 2 . . 1 . . 1 1 . . . . 2 . 1 . . . 1 . . . 1 . 1 . . . Feedback Events 1 | . 1 . . . . . . . . . . . . . . . . . . . . . . . . . . . . . . . . . Corruption 1 | . 1 . . . . . . . . . . . . . . . . . . . . . . . . . . . . . . . . . Feedback Blocked 1 | . . . . . . . . . . . . . . . . . . . . . . . . . . . . . . . 1 . . . Robot Schematics Acquired 7 | . . . . . . . . . . . . . . 1 . . 6 . . . . . . . . . . . . . . . . . Robots Built . | . . . . . . . . . . . . . . . . . . . . . . . . . . . . . . . . . . . Authchips . | . . . . . . . . . . . . . . . . . . . . . . . . . . . . . . . . . . . Time . | . . . . . . . . . . . . . . . . . . . . . . . . . . . . . . . . . . . Total Robot Build Rating . | . . . . . . . . . . . . . . . . . . . . . . . . . . . . . . . . . . . Part Schematics Acquired 40 | . . . . . 3 . 11 . . 2 . . . 8 . . 13 . 1 . . . . . . . . . . . 2 . . . Parts Built 3 | . . . . . . . . . . . . . . . . . . . 3 . . . . . . . . . . . . . . . Authchips . | . . . . . . . . . . . . . . . . . . . . . . . . . . . . . . . . . . . Time 227 | . . . . . . . . . . . . . . . . . . . 227 . . . . . . . . . . . . . . . Total Part Build Rating 20 | . . . . . . . . . . . . . . . . . . . 20 . . . . . . . . . . . . . . . Part Studies Acquired 10 | . . . . . 1 . 1 . . 2 . . . 2 . . . . . . . . . . . . . . 3 . . . 1 . Parts Repaired 5 | . 1 . . . . . 1 . . . . . . 1 . . . . . . . . . . . . . . 2 . . . . . Time 279 | . 26 . . . . . 60 . . . . . . 35 . . . . . . . . . . . . . . 158 . . . . . Parts Recycled . | . . . . . . . . . . . . . . . . . . . . . . . . . . . . . . . . . . . Recycled Matter . | . . . . . . . . . . . . . . . . . . . . . . . . . . . . . . . . . . . Retrieved Matter . | . . . . . . . . . . . . . . . . . . . . . . . . . . . . . . . . . . . Retrieved Components 2 | . . . . . . . 2 . . . . . . . . . . . . . . . . . . . . . . . . . . . Parts Scanalyzed 2 | . . . . . . . . . . . . . . . . . . . . . . . . . . . . . . . 2 . . . Part Schematics Acquired 2 | . . . . . . . . . . . . . . . . . . . . . . . . . . . . . . . 2 . . . Parts Damaged 1 | . . . . . . . . . . . . . . . . . . . . . . . . . . . . . . . 1 . . . Bothacking | -11 -10 -10 -10 -9 -8 -8 -7 -7 -7 -6 -6 -6 -6 -6 -6 -6 -6 -5 -5 -5 -5 -5 -5 -5 -5 -4 -4 -4 -3 -3 -2 -2 -2 -1 ------------ Run | Yrd Mat Min Exi Min Mat Gar Fac Gar Sto Fac Was Fac Gar Fac Low Low Dat Pro Fac Was Fac Ext Cet Arc Hub Fac Was Fac Res Tes Res Qua Sec Acc Used RIF Installer 2 | . . . . . . 1 . . . . . . 1 . . . . . . . . . . . . . . . . . . . . . Threat Obfuscator 1 | . . . . . . . . . . . . . 1 . . . . . . . . . . . . . . . . . . . . . Robots Hacked 95 | . . . 4 . . . 9 3 . 3 . 12 4 23 . 1 1 4 17 . . 3 . 2 6 2 . 1 . . . . . . Non-combat 26 | . . . 3 . . . 3 . . 1 . 2 . 9 . 1 . 1 5 . . . . . . 1 . . . . . . . . Combat 69 | . . . 1 . . . 6 3 . 2 . 10 4 14 . . 1 3 12 . . 3 . 2 6 1 . 1 . . . . . . Robot Hacks Applied 63 | . . . 4 . . . 11 3 . 1 . 8 6 21 . 1 1 1 5 . . . . . . 1 . . . . . . . . parse_system 16 | . . . 4 . . . 1 . . . . 2 . 5 . 1 1 1 1 . . . . . . . . . . . . . . . find_chute 2 | . . . . . . . . . . 1 . . . . . . . . . . . . . . . 1 . . . . . . . . drop_inventory 2 | . . . . . . . . . . . . . . . . . . . 2 . . . . . . . . . . . . . . . deconstruct_bot 1 | . . . . . . . 1 . . . . . . . . . . . . . . . . . . . . . . . . . . . purge_threat 5 | . . . . . . . 3 . . . . 2 . . . . . . . . . . . . . . . . . . . . . . block_reporting 1 | . . . . . . . . . . . . . . 1 . . . . . . . . . . . . . . . . . . . . map_route 4 | . . . . . . . . . . . . . . 3 . . . . 1 . . . . . . . . . . . . . . . emergency_deploy 1 | . . . . . . . . 1 . . . . . . . . . . . . . . . . . . . . . . . . . . scatter_targeting 1 | . . . . . . . . . . . . . 1 . . . . . . . . . . . . . . . . . . . . . amplify_resonance 1 | . . . . . . . . . . . . . . 1 . . . . . . . . . . . . . . . . . . . . wipe_record 4 | . . . . . . . 2 1 . . . 1 . . . . . . . . . . . . . . . . . . . . . . reboot_system 3 | . . . . . . . . 1 . . . . . 2 . . . . . . . . . . . . . . . . . . . . overwrite_iff 7 | . . . . . . . . . . . . 1 2 4 . . . . . . . . . . . . . . . . . . . . formatsys_low 4 | . . . . . . . . . . . . 1 . 2 . . . . 1 . . . . . . . . . . . . . . . formatsys_high 11 | . . . . . . . 4 . . . . 1 3 3 . . . . . . . . . . . . . . . . . . . . Relay Couplers Released 51 | . . . . . . 8 3 13 . . . 7 5 13 . . . . 2 . . . . . . . . . . . . . . . Ejected 18 | . . . . . . . 3 . . . . 4 . 11 . . . . . . . . . . . . . . . . . . . . Machine Destruction 26 | . . . . . . 8 . 9 . . . . 5 2 . . . . 2 . . . . . . . . . . . . . . . Programmers 7 | . . . . . . . . 4 . . . 3 . . . . . . . . . . . . . . . . . . . . . . Attached 21 | . . . . . . . 3 3 . . . 2 3 8 . . . . 2 . . . . . . . . . . . . . . . Fabnet Peak Effective % 15 | . . . . . . . . . . 6 6 6 6 6 6 6 6 15 15 15 15 15 15 15 15 5 5 5 . . . . . . Autooverrided 42 | . . . . . . . . . . 2 . 7 . 5 . . . 3 12 . . 3 . 2 6 1 . 1 . . . . . . Robots Rewired 18 | . . . . . . . . . . 1 . . . . . . . . . . . 17 . . . . . . . . . . . . Allies Hacked 6 | . . . . . . . 3 . . 1 . . . . . . . . 1 . . . . . 1 . . . . . . . . . Hacks Repelled . | . . . . . . . . . . . . . . . . . . . . . . . . . . . . . . . . . . . Allies | -11 -10 -10 -10 -9 -8 -8 -7 -7 -7 -6 -6 -6 -6 -6 -6 -6 -6 -5 -5 -5 -5 -5 -5 -5 -5 -4 -4 -4 -3 -3 -2 -2 -2 -1 -------- Run | Yrd Mat Min Exi Min Mat Gar Fac Gar Sto Fac Was Fac Gar Fac Low Low Dat Pro Fac Was Fac Ext Cet Arc Hub Fac Was Fac Res Tes Res Qua Sec Acc Total Allies 136 | . 2 . . . . . 15 . 2 4 21 10 4 14 . . . 3 16 . . 27 5 2 6 1 . 1 1 . 1 . 1 . Largest Group 27 | . 1 1 1 1 . . 6 . 2 2 21 21 2 2 2 2 2 3 4 . . 22 25 27 25 1 . 1 1 . 1 . 1 1 Highest-Rated Group 1335 | . 10 10 10 10 . . 132 . 62 62 759 759 61 122 122 122 122 176 202 . . 809 1214 1335 1156 54 . 116 26 . 10 . 1204 1204 Highest-Rated Ally 1204 | . 10 10 10 10 . . 37 . 31 41 50 50 32 90 90 90 90 90 99 . . 159 159 143 142 54 . 116 26 . 10 . 1204 1204 Total Orders 14 | . . . . . . . . . . . . . . . . . . . . . . . . . 14 . . . . . . . . . STAY 8 | . . . . . . . . . . . . . . . . . . . . . . . . . 8 . . . . . . . . . FOLLOW 6 | . . . . . . . . . . . . . . . . . . . . . . . . . 6 . . . . . . . . . Ally Attacks 867 | . . . . . . . 104 . 21 11 . 198 19 25 38 8 . 13 117 . . 50 45 26 140 3 . . . . . . 4 45 Total Damage 26186 | . . . . . . . 1516 . 316 111 . 5120 310 374 1254 207 . 303 4257 . . 1536 866 778 3586 9 . . . . . . 538 5105 Kills 148 | . . . . . . . 19 . 2 . . 39 . 1 7 . . 3 30 . . 10 7 3 17 . . . . . . . 2 8 Allies Corrupted 5 | . . . . . . . . . . . . 2 . 1 . . . . 2 . . . . . . . . . . . . . . . Allies Melted 3 | . . . . . . . 1 . . . . . . . . . . . . . . . . . 1 1 . . . . . . . . Turrets Deployed 3 | . . . . . . . . . . . . . . . . . . . 3 . . . . . . . . . . . . . . . Intel | -11 -10 -10 -10 -9 -8 -8 -7 -7 -7 -6 -6 -6 -6 -6 -6 -6 -6 -5 -5 -5 -5 -5 -5 -5 -5 -4 -4 -4 -3 -3 -2 -2 -2 -1 ------- Run | Yrd Mat Min Exi Min Mat Gar Fac Gar Sto Fac Was Fac Gar Fac Low Low Dat Pro Fac Was Fac Ext Cet Arc Hub Fac Was Fac Res Tes Res Qua Sec Acc Active Infowar (turns) 24191 | 62 1467 1124 902 820 1666 . 1270 68 154 1217 144 1750 256 2876 493 534 36 373 2107 36 386 426 . 130 888 638 31 699 1384 430 734 407 348 335 Optics 4770 | . . . . . 1 . . . . . . . . . 426 534 36 373 271 . . . . . . . . . 908 430 701 407 348 335 Sensors 18179 | . . . . 747 805 . 1266 68 154 1217 144 1750 228 2876 491 534 36 373 2044 36 386 168 . 130 888 617 . . 1367 430 701 401 322 . A.S.S. 298 | . . . . . . . . . . . . . . . . . . . . . . . . . . . . . . . . . . 298 IFF 585 | . . . . . . . . . . . . . . . . . . . . . . . . . . . . 385 200 . . . . . Terrain 3881 | 50 191 . . . 1661 . . . . 683 144 502 . . . . . . . . . . . . . . . . 650 . . . . . Structural 15215 | . . . . . 1329 . 420 . . 1115 88 1673 256 2795 493 534 36 373 1685 36 386 426 . . . 39 31 547 921 430 674 271 322 335 Seismic 3628 | 62 1467 1124 902 73 . . . . . . . . . . . . . . . . . . . . . . . . . . . . . . Machine Analysis 756 | . . . . . . . 119 . . 270 . . . 22 . . . . . . . . . . . 50 31 264 . . . . . . Cloaking 240 | . . . . . . . . . . . . . . . . 2 . 117 121 . . . . . . . . . . . . . . . Jamming 1188 | . . . . . . . . . . . . . . . . . . . . . . . . . . . . . 1 . 651 107 321 108 ECM 2141 | . . . . . . . . . . . . . . . . . . . . . . . . . . . . . 466 408 675 335 257 . Robot Analysis Total 4 | . 3 . . . . . 1 . . . . . . . . . . . . . . . . . . . . . . . . . . . Derelict Logs Recovered 8 | . . 1 . 1 . . . . . . . . . . 1 3 . 2 . . . . . . . . . . . . . . . . Drone Launches 2 | . . . . . . . . . . . . . . . . . . . 2 . . . . . . . . . . . . . . . Drone Recoveries . | . . . . . . . . . . . . . . . . . . . . . . . . . . . . . . . . . . . Exploration | -11 -10 -10 -10 -9 -8 -8 -7 -7 -7 -6 -6 -6 -6 -6 -6 -6 -6 -5 -5 -5 -5 -5 -5 -5 -5 -4 -4 -4 -3 -3 -2 -2 -2 -1 ------------- Run | Yrd Mat Min Exi Min Mat Gar Fac Gar Sto Fac Was Fac Gar Fac Low Low Dat Pro Fac Was Fac Ext Cet Arc Hub Fac Was Fac Res Tes Res Qua Sec Acc Turns Passed 32263 | 191 1974 1188 902 927 1703 2251 1536 335 181 1217 144 1750 256 2881 493 534 36 373 2150 36 386 2517 404 934 1294 1154 31 773 1453 430 739 407 348 335 Spaces Moved 46575 | 107 958 598 445 456 985 901 4273 578 413 3587 218 4903 390 6975 1297 1516 117 919 4435 91 783 1445 162 421 557 814 72 914 2662 1034 1330 668 758 793 Core 170 | 15 . . . . . . . . . . . . . . . . . . 45 . . . . . . . . 108 . . . . 2 . Treads 1556 | . 1 . . . . . . . . . . . . . . . . . . . . . 135 421 557 441 . 1 . . . . . . Legs 1623 | 92 261 . . . . . . . . . . . . . . . . . . . . 1243 27 . . . . . . . . . . . Wheels 4077 | . 692 598 445 456 985 901 . . . . . . . . . . . . . . . . . . . . . . . . . . . . Hover 623 | . 2 . . . . . . . . . . . . . . . . . . . . . . . . . . 621 . . . . . . Flight 38513 | . 2 . . . . . 4273 578 413 3587 218 4903 390 6975 1297 1516 117 919 4390 91 783 202 . . . 373 72 184 2662 1034 1330 668 743 793 Fastest Speed 5 | 50 95 140 200 140 120 150 23 25 25 24 25 21 26 5 11 11 24 24 5 35 30 29 120 160 160 34 40 34 31 23 31 23 32 28 Average Speed 48 | 110 137 185 200 173 127 202 24 25 25 24 25 25 26 24 23 23 24 24 33 35 34 107 153 160 160 103 40 59 34 30 31 30 32 28 Slowest Speed 940 | 120 940 200 200 200 215 210 96 26 25 25 25 98 28 31 24 24 24 24 103 35 115 120 160 160 160 160 40 200 39 31 31 32 200 28 Overloaded Moves 660 | . . . . . . . . . . 151 . 91 . 63 9 1 . . 258 . . . . . . . . . . 5 . 82 . . Propulsion Burnouts 1 | . . . . . . . . . . . . . . . . . . . 1 . . . . . . . . . . . . . . . Robots Hopped 282 | . . . . . . . 32 . 10 23 . 36 3 30 . . . . 28 . 4 . . . . . . 5 46 12 14 15 15 9 Potential Cave-ins 8 | . . . . 2 . . . . . . . . . . . . . . . . . . . . . . . . . . 6 . . . Cave-ins Triggered 1 | . . . . . . . . . . . . . . . . . . . . . . . . . . . . . . . 1 . . . Spacefolds 5 | . . . . . . . . . . . . . . . . . . . . . . . . . . . . . . . . . 5 . Time Travels 1 | . . . . . . . . . . . . . . 1 . . . . . . . . . . . . . . . . . . . . Exploration Rate (%) 68 | 8 99 99 93 93 71 79 92 54 52 69 95 87 42 84 94 94 80 85 56 82 16 83 74 98 44 21 71 32 62 78 38 87 60 21 Regions Visited 34 Branch Regions 15 Pre-discovered Areas 14 | . 2 . 1 . 1 . 1 . . 4 . . . 3 . 1 1 . . . . . . . . . . . . . . . . . Known Exits Taken 20 | . . . . . 1 . 1 . 1 . . 1 . 1 1 1 1 1 . . 1 1 1 1 1 . . 1 1 1 1 1 1 . Unknown Exits Taken 5 | 1 1 1 1 1 . . . . . . . . . . . . . . . . . . . . . . . . . . . . . . Scrap Searched 10 | . . 1 . 2 . . . . . . . . . . 2 4 . 1 . . . . . . . . . . . . . . . . Spaces Dug 453 | . 3 . . 22 33 6 28 4 6 53 . 44 4 107 . 2 . 1 32 . 15 . 7 4 2 7 . 7 7 2 42 4 9 2 Terrain Destroyed 2535 | . 77 24 . 74 95 19 81 10 6 167 . 166 4 1398 30 113 . 1 32 . 15 16 13 17 30 32 . 42 7 2 49 4 9 2 Melee 279 | . . . . . 3 6 20 4 6 35 . 37 4 74 . 1 . 1 31 . 10 . . . . 6 . . 7 2 19 3 8 2 Projectile 256 | . 5 . . 7 29 . 9 . . . . 7 . 45 . 1 . . 1 . 5 16 13 17 30 26 . 20 . . 23 1 1 . AOE 1993 | . 72 24 . 67 63 13 52 6 . 132 . 122 . 1279 30 111 . . . . . . . . . . . 22 . . . . . . Terrain Rammed . | . . . . . . . . . . . . . . . . . . . . . . . . . . . . . . . . . . . Walls Destroyed . | . . . . . . . . . . . . . . . . . . . . . . . . . . . . . . . . . . . Machines Disabled . | . . . . . . . . . . . . . . . . . . . . . . . . . . . . . . . . . . . Actions | -11 -10 -10 -10 -9 -8 -8 -7 -7 -7 -6 -6 -6 -6 -6 -6 -6 -6 -5 -5 -5 -5 -5 -5 -5 -5 -4 -4 -4 -3 -3 -2 -2 -2 -1 --------- Run | Yrd Mat Min Exi Min Mat Gar Fac Gar Sto Fac Was Fac Gar Fac Low Low Dat Pro Fac Was Fac Ext Cet Arc Hub Fac Was Fac Res Tes Res Qua Sec Acc Total 53102 | 153 1290 650 458 542 1293 1180 4611 720 452 3751 307 5165 508 7600 1463 1666 124 1067 4881 94 847 2226 288 618 848 998 73 1080 3061 1086 1514 848 804 836 Wait 3189 | 12 86 8 . 57 123 120 144 37 25 39 88 54 80 64 145 122 4 146 233 4 22 493 80 119 208 47 . 73 298 17 62 147 24 8 Move 46004 | 106 957 597 444 455 985 900 4211 577 393 3544 217 4835 383 6915 1296 1515 116 918 4382 90 774 1444 161 420 557 814 71 903 2578 1009 1301 641 721 774 Hop 252 | . . . . . . . 30 . 9 20 . 31 3 29 . . . . 25 . 4 . . . . . . 5 37 12 13 11 14 9 Pick Up 208 | 7 21 9 5 2 24 11 9 2 . 9 . 10 4 15 3 2 1 . 5 . 2 11 5 1 7 9 . 2 14 3 3 9 2 1 Fast Attach 207 | 14 3 . . 1 7 . 10 2 . 6 . 8 . 14 1 1 . . 30 . 7 12 4 3 6 14 1 21 15 7 2 6 11 1 Attach 129 | . 2 . . 4 2 1 22 2 . 4 1 7 5 7 . . 1 . 7 . 3 6 1 1 3 7 . 5 9 1 12 5 6 5 Detach 98 | . . 1 . . . . 12 1 . 3 1 4 2 7 1 1 . . 13 . 3 2 1 . 1 2 . 3 10 6 11 4 6 3 Swap 342 | 1 34 11 . 6 43 22 14 4 5 15 . 32 1 54 4 5 . . 15 . 1 33 2 4 2 4 . 1 8 7 11 1 2 . Drop 285 | 2 8 5 5 . 29 14 24 1 2 11 . 18 . 24 1 4 1 . 33 . . 19 13 8 3 8 1 10 15 3 3 16 3 1 Fire 1175 | 10 156 19 . 17 74 76 57 4 . 23 . 35 13 232 6 11 1 1 9 . 5 81 21 62 54 67 . 57 13 . 61 1 2 7 Melee 839 | . . . 4 . 6 20 50 27 18 71 . 116 17 189 6 5 . 2 114 . 26 18 . . 6 10 . . 32 21 34 7 13 27 Ram . | . . . . . . . . . . . . . . . . . . . . . . . . . . . . . . . . . . . Kick 1 | 1 . . . . . . . . . . . . . . . . . . . . . . . . . . . . . . . . . . Crush 2 | . . . . . . . . . . . . . . . . . . . . . . . . . 1 1 . . . . . . . . Escape Stasis 265 | . . . . . . 16 28 63 . . . 15 . 50 . . . . 15 . . 30 . . . 15 . . 32 . 1 . . . Rewire 83 | . . . . . . . . . . 6 . . . . . . . . . . . 77 . . . . . . . . . . . . Trap 23 | . 23 . . . . . . . . . . . . . . . . . . . . . . . . . . . . . . . . . Miscellaneous . | . . . . . . . . . . . . . . . . . . . . . . . . . . . . . . . . . . . Route ------- -11/Scrapyard -10/Materials (discovered 5 exits: [*Mat x3] / *Min x2) -10/Mines (discovered 4 exits: [*Mat x2] / *Exi / [*Sub]) -10/Exiles (discovered 2 exits: [*Min x2]) -9/Mines -8/Materials (discovered 4 exits: *Fac x3 / Gar) -8/Garrison (discovered 3 exits: *Fac x3) -7/Factory (discovered 8 exits: *Fac x3 / *Sto x2 / *Low x2 / Gar) -7/Garrison (discovered 2 exits: *Sto x2) -7/Storage (discovered 2 exits: *Fac / Rec) -6/Factory (discovered 4 exits: *Fac x2 / *Low x2) -6/Waste -6/Factory (discovered 6 exits: *Fac x3 / *Low x2 / Gar) -6/Garrison (discovered 3 exits: *Fac x3) -6/Factory (discovered 5 exits: *Fac x3 / *Low x2) -6/Lower Caves -6/Lower Caves (discovered 2 exits: *Fac / *Dat) -6/Data Miner -5/Proximity Caves -5/Factory (discovered 3 exits: Fac / *Upp / *Ext) -5/Waste -5/Factory (discovered 2 exits: *Fac / *Ext) -5/Extension (discovered 2 exits: *Fac / *Cet) -5/Cetus (discovered 2 exits: *Fac / *Arc) -5/Archives (discovered 3 exits: *Fac / *Hub x2) -5/Hub_04(d) (discovered 2 exits: *Fac x2) -4/Factory (discovered 3 exits: *Res / [*Upp] / Arm) -4/Waste -4/Factory (discovered 2 exits: *Res / [*Upp]) -3/Research (discovered 4 exits: *Res x2 / *Tes x2) -3/Testing -2/Research -2/Quarantine (discovered 3 exits: *Acc / *Sec / *Frg) -2/Section 7 -1/Access Tau Ceti IV Orbit History --------- Turn | Location | Event 2 | -11/Scrapyard | Met Revision 17 71 | -11/Scrapyard | Discovered new exit (range 8) 160 | -11/Scrapyard | Released all parts (7) 192 | -11/Scrapyard | Entered Materials 248 | -10/Materials | Discovered new exit (range 15) 308 | -10/Materials | Build established: Mutant 387 | -10/Materials | Discovered new exit (range 12) 623 | -10/Materials | Discovered new exit (range 15) 710 | -10/Materials | Repaired Assault Rifle 1063 | -10/Materials | Destroyed 7 combat bots 1092 | -10/Materials | Discovered new exit (range 15) 1354 | -10/Materials | Discovered new exit (range 10) 1612 | -10/Materials | Build established: Scavenger-Mutant 2166 | -10/Materials | Entered Mines 2166 | -10/Mines | Accompanied by 1 ally 2198 | -10/Mines | Discovered new exit (range 9) 2228 | -10/Mines | Build established: Mutant 2260 | -10/Mines | Discovered new exit (range 13) 2263 | -10/Mines | Met a Derelict bent on vengeance 2311 | -10/Mines | Discovered new exit (range 13) 2382 | -10/Mines | Found a hidden stash of uninstalled traps 2625 | -10/Mines | Learned Materials trap positions 3342 | -10/Mines | Deemed a non-threat by the Exiles lab entrance 3342 | -10/Mines | Discovered new exit (range 5) 3354 | -10/Mines | Entered Exiles 3354 | -10/Exiles | Accompanied by 1 ally 3380 | -10/Exiles | Discovered new exit (range 15) 3408 | -10/Exiles | Met 8R-AWN 3440 | -10/Exiles | Met EX-HEX 3529 | -10/Exiles | Met EX-DEC 3568 | -10/Exiles | Visited The Gauntlet 3659 | -10/Exiles | Build established: Scavenger-Mutant 3853 | -10/Exiles | Learned location of Zion (-7) 3885 | -10/Exiles | Met EX-BIN 3914 | -10/Exiles | Aligned with FarCom system 3916 | -10/Exiles | Given EX-Vault access code 3994 | -10/Exiles | Opened EX-Vault 4009 | -10/Exiles | Found PSU Rigger 4019 | -10/Exiles | Found Deploy-a-Sentry 4022 | -10/Exiles | Found Deploy-a-Sentry 4033 | -10/Exiles | Found Chronowheel 4043 | -10/Exiles | Found Deploy-a-Sentry 4080 | -10/Exiles | Warned to stay clear of 0b10 Research branches 4240 | -10/Exiles | Discovered new exit (range 10) 4256 | -10/Exiles | Stole three prototypes: PSU Rigger, Chronowheel, Deploy-a-Sentry 4256 | -10/Exiles | Entered Mines 4256 | -9/Mines | Accompanied by 1 ally 4289 | -9/Mines | Learned 2 Materials zone layouts 4328 | -9/Mines | Assembled infested the area 4333 | -9/Mines | Assisted by a Guerilla fighting off Assembled 4376 | -9/Mines | Core integrity fell below 50% 4396 | -9/Mines | Destroyed 7 combat bots 4406 | -9/Mines | Lost 3 parts (2n1u) 4777 | -9/Mines | Build established: Skirmisher 5147 | -9/Mines | Discovered new exit (range 12) 5183 | -9/Mines | Entered Materials 5183 | -8/Materials | Evolved 4 slots: Propulsion x2, Utility x2 5185 | -8/Materials | Loaded intel: 18 trap records 5388 | -8/Materials | Discovered new exit (range 3) 5473 | -8/Materials | Build established: Scavenger-Skirmisher 5535 | -8/Materials | Garrison activated, responded to threat 6077 | -8/Materials | Learned location of 1 exit from Extension 6115 | -8/Materials | Central database locked down 6134 | -8/Materials | Learned Storage trap positions 6182 | -8/Materials | Learned location of 1 exit from Storage 6222 | -8/Materials | Learned Factory stockpile data 6252 | -8/Materials | Learned Storage emergency access door positions 6272 | -8/Materials | Learned Storage emergency access door positions 6282 | -8/Materials | Identified exit to Factory 6301 | -8/Materials | Learned location of 2 exits from Factory 6329 | -8/Materials | Learned location of Extension (-5) 6813 | -8/Materials | Build established: Skirmisher 6886 | -8/Materials | Identified exit to Garrison 6886 | -8/Materials | Entered Garrison 6968 | -8/Garrison | Triggered checkpoint 7132 | -8/Garrison | Build established: Mutant 7290 | -8/Garrison | Triggered checkpoint 8133 | -8/Garrison | Installed Relay Interface Framework 8153 | -8/Garrison | Triggered checkpoint 8191 | -8/Garrison | Garrison Relay disabled 8326 | -8/Garrison | Triggered checkpoint 8449 | -8/Garrison | Triggered checkpoint 8485 | -8/Garrison | Garrison Relay disabled 8638 | -8/Garrison | Discovered exit to Factory (range 60) 8638 | -8/Garrison | Discovered exit to Factory (range 26) 8638 | -8/Garrison | Discovered exit to Factory (range 32) 8785 | -8/Garrison | Build established: Bothacker-Mutant 9137 | -8/Garrison | Entered Factory 9137 | -7/Factory | Evolved 2 slots: Propulsion x1, Utility x1 9138 | -7/Factory | Identified exit to Lower Caves 9138 | -7/Factory | Identified exit to Storage 9139 | -7/Factory | FarCom data flow suspended 9254 | -7/Factory | Garrison activated, responded to threat 9445 | -7/Factory | Build established: Bothacker-Sprinter 9537 | -7/Factory | First assault squad dispatched 9623 | -7/Factory | Garrison activated, responded to threat 9929 | -7/Factory | Garrison activated, responded to threat 9969 | -7/Factory | Lost 3 allies 10045 | -7/Factory | Garrison activated, responded to threat 10086 | -7/Factory | Discovered new exit (range 8) 10110 | -7/Factory | Discovered new exit (range 4) 10111 | -7/Factory | Identified exit to Factory 10371 | -7/Factory | Found Prototype Launcher 10371 | -7/Factory | Identified Rocket Array 10428 | -7/Factory | Repaired Imp. VTOL Module? 10508 | -7/Factory | Build established: Sprinter 10562 | -7/Factory | Discovered exit to Factory (range 5) 10673 | -7/Factory | Identified exit to Garrison 10673 | -7/Factory | Entered Garrison 10711 | -7/Garrison | Triggered checkpoint 10749 | -7/Garrison | Garrison Relay disabled 10753 | -7/Garrison | Garrison Relay disabled 10825 | -7/Garrison | Triggered checkpoint 10838 | -7/Garrison | Core integrity fell below 50% 10848 | -7/Garrison | Discovered exit to Storage (range 10) 10913 | -7/Garrison | Discovered exit to Storage (range 10) 11008 | -7/Garrison | Entered Storage 11009 | -7/Storage | Identified exit to Recycling 11010 | -7/Storage | Loaded intel: 18 trap records 11033 | -7/Storage | Met a pair of Derelict thieves 11176 | -7/Storage | Discovered exit to Factory (range 10) 11189 | -7/Storage | Entered Factory 11189 | -6/Factory | Evolved 2 slots: Utility x2 11261 | -6/Factory | Discovered new exit (range 16) 11307 | -6/Factory | Discovered new exit (range 12) 11310 | -6/Factory | Identified exit to Lower Caves 11539 | -6/Factory | Search patrols dispatched 11648 | -6/Factory | Discovered new exit (range 16) 11691 | -6/Factory | Identified exit to Factory 11970 | -6/Factory | Build established: Scout 12072 | -6/Factory | Cargo convoy interrupted 12075 | -6/Factory | Garrison activated, responded to threat 12276 | -6/Factory | Spotted B-75 Beast 12406 | -6/Factory | Sucked down chute 12406 | -6/Factory | Entered Waste 12407 | -6/Waste | Met a frightened Derelict 12407 | -6/Waste | Joined by Warlord forces that had cleared the area 12452 | -6/Waste | Discovered new exit (range 11) 12461 | -6/Waste | Identified exit to Factory 12550 | -6/Waste | Entered Factory 12550 | -6/Factory | Accompanied by 21 allies 12612 | -6/Factory | Discovered exit to Lower Caves (range 16) 12730 | -6/Factory | Local machine network offline 12769 | -6/Factory | Discovered exit to Lower Caves (range 3) 12900 | -6/Factory | First assault squad dispatched 13019 | -6/Factory | Discovered exit to Factory (range 16) 13159 | -6/Factory | Garrison activated, responded to threat 13295 | -6/Factory | Discovered exit to Factory (range 9) 13302 | -6/Factory | Garrison activated, responded to threat 13750 | -6/Factory | Discovered exit to Factory (range 8) 13896 | -6/Factory | Identified exit to Garrison 14291 | -6/Factory | Cargo convoy interrupted 14300 | -6/Factory | Entered Garrison 14332 | -6/Garrison | Garrison Relay disabled 14348 | -6/Garrison | Triggered checkpoint 14438 | -6/Garrison | Spotted B-75 Beast 14490 | -6/Garrison | Triggered checkpoint 14514 | -6/Garrison | Triggered checkpoint 14519 | -6/Garrison | Discovered new exit (range 15) 14522 | -6/Garrison | Identified exit to Factory 14528 | -6/Garrison | Discovered exit to Factory (range 100) 14528 | -6/Garrison | Discovered exit to Factory (range 43) 14528 | -6/Garrison | Discovered exit to Factory (range 6) 14549 | -6/Garrison | Expanded RIF knowledge: Threat Obfuscation 14556 | -6/Garrison | Entered Factory 14593 | -6/Factory | Discovered exit to Lower Caves (range 5) 15175 | -6/Factory | Central database locked down 15178 | -6/Factory | Discovered exit to Factory (range 9) 15244 | -6/Factory | Repaired Cld. VTOL Module 15342 | -6/Factory | Spotted B-75 Beast 15417 | -6/Factory | Discovered exit to Factory (range 15) 15825 | -6/Factory | Build established: Bothacker-Scout 16124 | -6/Factory | Activated Chronowheel 16124 | -6/Factory | Spacetime reconverged on an earlier point 16306 | -6/Factory | First assault squad dispatched 16748 | -6/Factory | Cargo convoy interrupted 16832 | -6/Factory | Destroyed 8 combat bots 17043 | -6/Factory | Discovered exit to Factory (range 52) 17209 | -6/Factory | Core integrity fell below 50% 17381 | -6/Factory | High security lockdown imminent 17437 | -6/Factory | Entered Lower Caves 17437 | -6/Lower Caves | Accompanied by 2 allies 17439 | -6/Lower Caves | Encountered a Master Thief 17439 | -6/Lower Caves | Encountered a Master Thief 17442 | -6/Lower Caves | Encountered a Master Thief 17547 | -6/Lower Caves | Learned location of 1 exit from Proximity Caves 17761 | -6/Lower Caves | Discovered new exit (range 16) 17793 | -6/Lower Caves | Build established: Scout 17858 | -6/Lower Caves | Identified exit to Lower Caves 17930 | -6/Lower Caves | Entered another Lower Caves area 17930 | -6/Lower Caves | Accompanied by 2 allies 17930 | -6/Lower Caves | Discovered exit to Factory (range 17) 17938 | -6/Lower Caves | Found Prototype Device 17981 | -6/Lower Caves | Learned Factory terminal intel 18031 | -6/Lower Caves | Encountered a Warlord checkpoint 18044 | -6/Lower Caves | Found DCF Scrap (12 items) 18067 | -6/Lower Caves | Entered a destroyed Warlord outpost 18073 | -6/Lower Caves | Learned location of 1 exit from Factory 18184 | -6/Lower Caves | Encountered a Master Thief 18184 | -6/Lower Caves | Encountered a Master Thief 18185 | -6/Lower Caves | Encountered a Master Thief 18348 | -6/Lower Caves | Discovered new exit (range 20) 18356 | -6/Lower Caves | Identified exit to Data Miner 18464 | -6/Lower Caves | Entered Data Miner 18464 | -6/Data Miner | Accompanied by 2 allies 18465 | -6/Data Miner | Discovered new exit (range 6) 18468 | -6/Data Miner | Met Data Miner 18486 | -6/Data Miner | Learned location of Section 7 (-2) 18486 | -6/Data Miner | Acquired the access code to Warlord's prototype stash 18491 | -6/Data Miner | Received God Mode back door access code from Data Miner 18496 | -6/Data Miner | Identified exit to Proximity Caves 18500 | -6/Data Miner | Entered Proximity Caves 18500 | -5/Proximity Caves | Accompanied by 2 allies 18571 | -5/Proximity Caves | Learned Factory terminal intel 18622 | -5/Proximity Caves | Build established: Scavenger-Ninja 18680 | -5/Proximity Caves | Acquired the password to a Derelict Tinkerer's latest research 18727 | -5/Proximity Caves | Found DCF Scrap (10 items) 18873 | -5/Proximity Caves | Entered Factory 18873 | -5/Factory | Evolved 2 slots: Power x1, Utility x1 18874 | -5/Factory | Identified exit to Factory 18875 | -5/Factory | Loaded intel: 28 terminal locations 18950 | -5/Factory | Incoming investigation squad redirected 19036 | -5/Factory | Incoming investigation squad redirected 19065 | -5/Factory | Fabricated Lrn. Sensor Array? 19104 | -5/Factory | Fabricated Combat Drone Bay (x1) 19259 | -5/Factory | Discovered new exit (range 13) 19262 | -5/Factory | Identified exit to Upper Caves 19400 | -5/Factory | Spotted B-75 Beast 19566 | -5/Factory | Identified Heart of Steel 19874 | -5/Factory | Build established: Assassin 20052 | -5/Factory | Unchained authorized (CL-0N3) 20309 | -5/Factory | Heart of Steel transformed into Warbot 20359 | -5/Factory | T-07 Excavator reconstituted as Striker 20359 | -5/Factory | Spotted Striker 20363 | -5/Factory | Allies destroyed Striker 20363 | -5/Factory | Striker reconstituted as CL-0N3 20383 | -5/Factory | Local machine network offline 20387 | -5/Factory | Assembled infested ambush trap array 20444 | -5/Factory | Discovered new exit (range 16) 20486 | -5/Factory | DAS Turret deployed 20516 | -5/Factory | Lost 6 parts (4n1u1w) 20681 | -5/Factory | Incoming assault squad redirected 20685 | -5/Factory | Incoming assault squad redirected 20865 | -5/Factory | U-05 Engineer reconstituted as Quarantine Guard 20867 | -5/Factory | Spotted Quarantine Guard 20873 | -5/Factory | DAS Turret deployed 20875 | -5/Factory | DAS Turret deployed 20894 | -5/Factory | Allies destroyed Quarantine Guard 20894 | -5/Factory | Quarantine Guard reconstituted as CL-0N3 20896 | -5/Factory | Build established: Scout 21023 | -5/Factory | Manually triggered Chute Trap 21023 | -5/Factory | Sucked down chute 21023 | -5/Factory | Entered Waste 21033 | -5/Waste | Spotted C-40 Crusher 21036 | -5/Waste | Spotted C-40 Crusher 21038 | -5/Waste | EMP discharged 21042 | -5/Waste | Spotted C-40 Crusher 21042 | -5/Waste | Discovered new exit (range 11) 21042 | -5/Waste | Spotted C-40 Crusher 21049 | -5/Waste | Spotted C-40 Crusher 21059 | -5/Waste | Identified exit to Factory 21059 | -5/Waste | Entered Factory 21060 | -5/Factory | Loaded intel: 28 terminal locations 21402 | -5/Factory | Discovered exit to Factory (range 8) 21441 | -5/Factory | Discovered new exit (range 16) 21445 | -5/Factory | Identified exit to Extension 21445 | -5/Factory | Entered Extension 21958 | -5/Extension | Build established: Scavenger-Mutant 23276 | -5/Extension | Spotted B-75 Beast 23293 | -5/Extension | Destroyed B-75 Beast 23303 | -5/Extension | Spotted B-75 Beast 23306 | -5/Extension | Build established: Commander-Mutant 23311 | -5/Extension | Destroyed B-75 Beast 23335 | -5/Extension | Lost 3 allies 23387 | -5/Extension | Rescued A7 23390 | -5/Extension | Core integrity fell below 50% 23493 | -5/Extension | Rescued a captive Derelict 23545 | -5/Extension | Rescued a captive Derelict 23547 | -5/Extension | Rescued a captive Derelict 23559 | -5/Extension | Rescued a captive Derelict 23561 | -5/Extension | Rescued a captive Derelict 23576 | -5/Extension | Rescued a captive Derelict 23819 | -5/Extension | Discovered new exit (range 6) 23825 | -5/Extension | Identified exit to Cetus 23962 | -5/Extension | Entered Cetus 23962 | -5/Cetus | Accompanied by 22 allies (A7) 23967 | -5/Cetus | Acquired a Cetus Manufacturing Module code from A7 23979 | -5/Cetus | Spotted Cetus Guard 23979 | -5/Cetus | Spotted Cetus Guard 23981 | -5/Cetus | Spotted Cetus Guard 23981 | -5/Cetus | Spotted Cetus Guard 23985 | -5/Cetus | Allies destroyed Cetus Guard 23991 | -5/Cetus | Allies destroyed Cetus Guard 23991 | -5/Cetus | Allies destroyed Cetus Guard 24003 | -5/Cetus | Allies destroyed Cetus Guard 24071 | -5/Cetus | Started Cetus Manufacturing Module 24095 | -5/Cetus | Escorted A7 to Cetus Mainframe 24096 | -5/Cetus | Manufactured an Enhanced Grunt 24114 | -5/Cetus | Discovered new exit (range 16) 24121 | -5/Cetus | Manufactured an Enhanced Grunt 24141 | -5/Cetus | Spotted Cetus Guard 24141 | -5/Cetus | Spotted Cetus Guard 24144 | -5/Cetus | Spotted Cetus Guard 24144 | -5/Cetus | Spotted Cetus Guard 24146 | -5/Cetus | Manufactured an Enhanced Grunt 24150 | -5/Cetus | Allies destroyed Cetus Guard 24151 | -5/Cetus | Destroyed Cetus Guard 24152 | -5/Cetus | Allies destroyed Cetus Guard 24157 | -5/Cetus | Destroyed Cetus Guard 24171 | -5/Cetus | Manufactured an Enhanced Grunt 24178 | -5/Cetus | Discovered exit to Factory (range 15) 24186 | -5/Cetus | Met Revision 17 24196 | -5/Cetus | Manufactured an Enhanced Grunt 24264 | -5/Cetus | Identified exit to Archives 24366 | -5/Cetus | Entered Archives 24366 | -5/Archives | Accompanied by 25 allies (A7) 24371 | -5/Archives | Received a hacking code to weaken MAIN.C 24457 | -5/Archives | Unable to access archive contents 24473 | -5/Archives | Unable to access archive contents 24474 | -5/Archives | Discovered new exit (range 16) 24489 | -5/Archives | Unable to access archive contents 24492 | -5/Archives | Discovered new exit (range 16) 24511 | -5/Archives | Unable to access archive contents 24514 | -5/Archives | Discovered exit to Factory (range 16) 25079 | -5/Archives | Identified exit to Hub_04(d) 25300 | -5/Archives | Entered Hub_04(d) 25300 | -5/Hub_04(d) | Accompanied by 24 allies 25408 | -5/Hub_04(d) | Spotted B-75 Beast 25413 | -5/Hub_04(d) | Destroyed B-75 Beast 25475 | -5/Hub_04(d) | Unchained authorized (6S-H0T) 25663 | -5/Hub_04(d) | Lost 3 allies 25756 | -5/Hub_04(d) | Lost 4 allies 25943 | -5/Hub_04(d) | Garrison activated, responded to threat 25981 | -5/Hub_04(d) | Lost 13 allies 25989 | -5/Hub_04(d) | Build established: Scavenger-Mutant 26011 | -5/Hub_04(d) | Discovered exit to Factory (range 5) 26506 | -5/Hub_04(d) | Lost 4 parts (1p1n2u) 26530 | -5/Hub_04(d) | Discovered exit to Factory (range 9) 26583 | -5/Hub_04(d) | Network Hub disabled 26584 | -5/Hub_04(d) | Local machine network offline 26587 | -5/Hub_04(d) | Network Hub disabled 26594 | -5/Hub_04(d) | Entered Factory 26594 | -4/Factory | Evolved 2 slots: Propulsion x1, Utility x1 26595 | -4/Factory | Identified exit to Armory 26774 | -4/Factory | Discovered new exit (range 4) 26963 | -4/Factory | Local machine network offline 27160 | -4/Factory | Discovered new exit (range 5) 27166 | -4/Factory | Identified exit to Research 27228 | -4/Factory | Build established: Hacker-Mutant 27294 | -4/Factory | Unchained authorized (6S-H0T) 27495 | -4/Factory | Lost 6 parts (1p4u1w) 27748 | -4/Factory | Sucked down chute 27748 | -4/Factory | Entered Waste 27752 | -4/Waste | Spotted C-40 Crusher 27757 | -4/Waste | Spotted C-40 Crusher 27761 | -4/Waste | Spotted C-40 Crusher 27761 | -4/Waste | Spotted C-40 Crusher 27763 | -4/Waste | EMP discharged 27763 | -4/Waste | System corruption reached 10% 27764 | -4/Waste | Lost 5 parts (1p2n1u1w) 27765 | -4/Waste | Spotted C-40 Crusher 27768 | -4/Waste | Spotted C-40 Crusher 27769 | -4/Waste | Discovered new exit (range 10) 27779 | -4/Waste | Identified exit to Factory 27779 | -4/Waste | Entered Factory 27796 | -4/Factory | Spotted B-86 Titan 27902 | -4/Factory | Discovered new exit (range 12) 28433 | -4/Factory | Core integrity fell below 50% 28476 | -4/Factory | Lost 3 parts (2u1w) 28510 | -4/Factory | Incoming investigation squad redirected 28547 | -4/Factory | Discovered exit to Research (range 12) 28552 | -4/Factory | Entered Research 28552 | -3/Research | Evolved 2 slots: Utility x2 28588 | -3/Research | Identified exit to Testing 28752 | -3/Research | Revision forces began assault on 0b10 28762 | -3/Research | Spotted B-86 Titan 28940 | -3/Research | Met up with Revision 17++ 29252 | -3/Research | Research terminal network offline 29348 | -3/Research | Build established: Scavenger-Scout 29358 | -3/Research | Discovered new exit (range 3) 29359 | -3/Research | Identified exit to Research 29449 | -3/Research | Spotted B-86 Titan 29546 | -3/Research | Discovered exit to Research (range 5) 29564 | -3/Research | Spotted Striker 29658 | -3/Research | Spotted B-86 Titan 29665 | -3/Research | Spotted Striker 29667 | -3/Research | Spotted Striker 29825 | -3/Research | Build established: Infiltrator-Ninja 29871 | -3/Research | Repaired Centrium Medium Armor Plating 29922 | -3/Research | Repaired Tactical Coordination Suite 29968 | -3/Research | Spotted Striker 29974 | -3/Research | Spotted Striker 30005 | -3/Research | Entered Testing 30064 | -3/Testing | Found Ghost Barrier 30080 | -3/Testing | Found Prototype Energy Cannon 30080 | -3/Testing | Identified Cld. Nova Cannon 30099 | -3/Testing | Found Prototype Ballistic Gun 30099 | -3/Testing | Identified Hyp. Multirail 30147 | -3/Testing | Found Prototype Launcher 30147 | -3/Testing | Identified Z-bomb Delivery System 30168 | -3/Testing | Found Prototype Device 30168 | -3/Testing | Identified Exp. Hardlight Generator 30176 | -3/Testing | Discovered exit to Research (range 18) 30190 | -3/Testing | Found Prototype Energy Cannon 30190 | -3/Testing | Identified Null Cannon 30275 | -3/Testing | Found Prototype Energy Cannon 30275 | -3/Testing | Identified Hpw. Disruptor Cannon 30289 | -3/Testing | Spotted Alpha 7 30350 | -3/Testing | Found Prototype Device 30350 | -3/Testing | Identified 2N-1CE's Frost Array 30435 | -3/Testing | Entered Research 30435 | -2/Research | Evolved 2 slots: Utility x2 30798 | -2/Research | Incoming investigation squad redirected 30856 | -2/Research | Spotted B-90 Cyclops 30860 | -2/Research | Spotted B-90 Cyclops 30933 | -2/Research | Crushed by falling debris 30964 | -2/Research | Lost 3 parts (3u) 31169 | -2/Research | Discovered new exit (range 18) 31174 | -2/Research | Identified exit to Quarantine 31174 | -2/Research | Entered Quarantine 31196 | -2/Quarantine | Found Alien Slashing Weapon 31196 | -2/Quarantine | Identified Sigix Broadsword 31222 | -2/Quarantine | Met incapacitated Sigix Warrior 31222 | -2/Quarantine | Lockdown squad dispatched 31224 | -2/Quarantine | Acquired the access code to the Sigix quarantine chamber 31224 | -2/Quarantine | Unlocked Sigix quarantine chamber 31228 | -2/Quarantine | Found Sigix Containment Pod 31247 | -2/Quarantine | Found Alien Impact Weapon 31248 | -2/Quarantine | Identified Core Stripper 31267 | -2/Quarantine | Spotted Lightning 31274 | -2/Quarantine | Spotted Lightning 31274 | -2/Quarantine | Spotted Lightning 31347 | -2/Quarantine | Found Sigix Corpse 31354 | -2/Quarantine | Found Sigix Corpse 31360 | -2/Quarantine | Found Alien Artifact 31360 | -2/Quarantine | Identified Core Reset Matrix 31360 | -2/Quarantine | Used Core Reset Matrix 31364 | -2/Quarantine | Sensed 15 artifacts in vicinity 31369 | -2/Quarantine | Discovered new exit (range 10) 31421 | -2/Quarantine | Spotted Fortress 31445 | -2/Quarantine | Discovered new exit (range 5) 31445 | -2/Quarantine | Discovered new exit (range 6) 31446 | -2/Quarantine | Identified exit to Protoforge 31447 | -2/Quarantine | Identified exit to Section 7 31581 | -2/Quarantine | Entered Section 7 31582 | -2/Section 7 | Detected hypermatrix surge 31582 | -2/Section 7 | Sensed 25 artifacts in vicinity 31594 | -2/Section 7 | Central database locked down 31631 | -2/Section 7 | Spotted S7 Guard 31640 | -2/Section 7 | Found Core Membrane 31640 | -2/Section 7 | Installed Core Membrane, gained immunity to corruption 31671 | -2/Section 7 | Found Spacefold Activator 31679 | -2/Section 7 | Spotted S7 Guard 31681 | -2/Section 7 | Found Integrated Thermoelectric Network 31681 | -2/Section 7 | Installed Integrated Thermoelectric Network, gained heat-energy exchange potential 31688 | -2/Section 7 | Spotted Alpha 7 31689 | -2/Section 7 | Spotted Alpha 7 31701 | -2/Section 7 | Spotted B-90 Cyclops 31712 | -2/Section 7 | Found Integrity Redistributor 31712 | -2/Section 7 | Used Integrity Redistributor, redistributed integrity from core (-160) 31741 | -2/Section 7 | Spotted S7 Guard 31750 | -2/Section 7 | Spotted Executioner 31751 | -2/Section 7 | Spotted Executioner 31766 | -2/Section 7 | Spotted B-99 Colossus 31786 | -2/Section 7 | Found Integrity Redistributor 31786 | -2/Section 7 | Used Integrity Redistributor, redistributed integrity from core (-27) 31798 | -2/Section 7 | Found LRC Armor 31798 | -2/Section 7 | Installed LRC Armor, increased core integrity (+250) 31802 | -2/Section 7 | Found LRC Energy Well 31802 | -2/Section 7 | Installed LRC Energy Well, increased energy storage capacity (+250) 31805 | -2/Section 7 | Found LRC Armor 31805 | -2/Section 7 | Installed LRC Armor, increased core integrity (+250) 31821 | -2/Section 7 | Found Integrated Reactor 31821 | -2/Section 7 | Installed Integrated Reactor, increased core energy generation (+10) 31823 | -2/Section 7 | Found Integrated Reactor 31823 | -2/Section 7 | Installed Integrated Reactor, increased core energy generation (+10) 31825 | -2/Section 7 | Found Integrated Reactor 31851 | -2/Section 7 | Activated Sigix Exoskeleton 31851 | -2/Section 7 | Received instructions from Sigix Warrior 31916 | -2/Section 7 | Discovered new exit (range 10) 31924 | -2/Section 7 | Identified exit to Access 31929 | -2/Section 7 | Sigix Exoskeleton integrity reduced to 80% 31929 | -2/Section 7 | Entered Access 31929 | -1/Access | Accompanied by 1 ally (Sigix Warrior) 31929 | -1/Access | Evolved 2 slots: Propulsion x1, Utility x1 31966 | -1/Access | Found Prototype Device 31966 | -1/Access | Identified Active Sensor Suite 32075 | -1/Access | Spotted Executioner 32086 | -1/Access | Allies destroyed Executioner 32099 | -1/Access | Spotted B-99 Colossus 32165 | -1/Access | Discovered new exit (range 11) 32169 | -1/Access | Identified exit to Surface 32183 | -1/Access | Spotted B-99 Colossus 32187 | -1/Access | Sigix Exoskeleton integrity reduced to 60% 32187 | -1/Access | Spotted B-99 Colossus 32215 | -1/Access | Sigix Exoskeleton integrity reduced to 40% 32222 | -1/Access | Destroyed B-99 Colossus 32252 | -1/Access | Sigix Exoskeleton integrity reduced to 20% 32254 | -1/Access | Allies destroyed B-99 Colossus 32264 | *** | Destroyed 0b10! Last Messages --------------- 32251_ Slug penetrates Sigix Warrior. 32251_ Slug penetrates Sealed Heavy Doors. 32251_ Slug penetrates Sigix Warrior. 32251_ Slug penetrates Sealed Heavy Doors. 32251_ Slug penetrates Sigix Warrior. 32251_ Slug penetrates Sealed Heavy Doors. 32251_ Quantum Shear penetrates B-99 Colossus. 32252_ Sigix Warrior: "Exoskeleton integrity at 20%." 32254_ Quantum Shear penetrates B-99 Colossus. 32254_ B-99 Colossus destroyed. 32254_ U-05 Engineer destroyed. [Achievement: 5k Club] [Achievement: 10k Club] [Achievement: 20k Club] [Achievement: 30k Club] [Achievement: 40k Club] [Achievement: 50k Club] [Achievement: Payload Armed] [Achievement: Partners In Destruction] [Achievement: Achiever] Map ----- +----------------------------------------------------+ | ????????? # # ## ????????????????????? | | ?????????## # ??????????????????????????????????? | | ????????? # # ??????????????????????????????????? | | ????????? # # ??????????????????????????????????? | | ????????? # # ??????????????????????????????????? | | ????????? # # ??????????????????????????????????? | | ????????? # # ??????????????????????????????????? | | ????????? + # ??????????????????????????????????? | | ????????? # # ??????????????????????????????????? | | ????????? # # ??????????????????????????????????? | | ????????? # # ??????????????????????????????????? | | ????????? # # ??????????????????????????????????? | | ????????? # ##??????????????????????????????????? | | ????????? # ##??????????????????????????????????? | | ?????????## ##??????????????????????????????????? | | ?????????## ##??????????????????????????????????? | | ?????????## ##??????????????????????????????????? | | ?????????## ##??????????????????????????###?????? | | ?????????## ###############################?????? | | ?????????## #######"#################### ##?????? | | ?????????## """T"""" """"!!*% ###?????? | | ?????????## """ """" %%""=[! |#### | | ?????????## " """""" "R%[%%= =%######### | | ?????????## " " " """*%!!= =u | | ?????????## "" "?""%!% | | ?????????## " " @" " "??" % ! | | ?????????## " " X" "??" ][ | | ?????????## " """""" "??"!%!= ######### | | ?????????## " ???? "??"=!!* ###### | | ?????????## " """"!!! ##??????? | | ?????????## R#######"######################??????? | | ?????????##t ##################### ########??????? | | ?????????## ##??????????????????????????????????? | | ????????? # # ??????????????????????????????????? | | ????????? # ????????????????????????????????????? | | ????????? + ????????????????????????????????????? | | ????????? # ????????????????????????????????????? | | ????????? # ????????????????????????????????????? | | ????????? # t????????????????????????????????????? | | ????????? # ????????????????????????????????????? | | ????????? # ????????????????????????????????????? | | ????????? # ????????????????????????????????????? | | ?????????## ????????????????????????????????????? | | ??????????? ?????????????????????????????????????? | | ?????????????????????????????????????????????????? | | ?????????????????????????????????????????????????? | | ?????????????????????????????????????????????????? | | ?????????????????????????????????????????????????? | | ?????????????????????????????????????????????????? | | ?????????????????????????????????????????????????? | +----------------------------------------------------+ Best States ------------- Heat Dissipation 93 Energy Generation 55 Energy Capacity 590 Matter Stores 300 Matter Capacity 550 Sight Range 22 Robot Scan Range 20 Terrain Scan Range 20 Terrain Scan Density 210 ECM Strength 3 Jamming Range 14 Cloak Strength 3 Additional Mass Support 12 Armor Coverage 900 Propulsion Shielding 66 Utility Shielding 66 Point Defense Rating 80 Evasion (%) 75 Targeting Accuracy 8 Core Analysis 6 Recoil Reduction 5 Offensive Hacking 24 Defensive Hacking 36 Relay Coupler Types 3 Relay Coupler Value 99 Authchip Count 2 Item Schematics ----------------- None Robot Schematics ------------------ None Fabricated ------------ Lrn. Sensor Array | x2 | -5/Factory Combat Drone Bay | x1 | -5/Factory Repaired ---------- Assault Rifle | 39% | -10/Materials Imp. VTOL Module | 50% | -7/Factory Cld. VTOL Module | 50% | -6/Factory Centrium Medium Armor Plating | 60% | -3/Research Tactical Coordination Suite | 62% | -3/Research Studied --------- Mic. Antimatter Reactor | -2/Section 7 | Hacked Alien Tech Used ----------------- Sigix Broadsword Core Stripper Core Reset Matrix Core Membrane Spacefold Activator Integrated Thermoelectric Network Integrity Redistributor LRC Armor LRC Energy Well Integrated Reactor Achievements -------------- 10k Club 20k Club 30k Club 40k Club 50k Club 5k Club A New Friend Achiever Alien Roots Alien Tech All Kinds Of Bad News Analysis Probe Armchair Analyst Assimilation Complete Beloved Below Bending The Rules Betrayal Most Foul Brother of Steel Brute Force Bumper Bots Can't Catch Me Consequences Construction Begets Destruction Crack Shot Cya! Dangerous Findings Deadly Force Deductive Reasoning Denied? Dodgeball, But With Guns Dramatic Entrance Dynamic Key Error 47 Everyone Must Die Everything Is Under Control Ew, Corruption Explorer Express Service Factory Defaults False Reunion Fancy Inventory Fishing Tech Fitting Room For Emergencies Only Generalissimo Ghost 'Em GoHome() Hack Snack Hack The Planet Heavy Suspicion Hehehe Hey, That's Mine! Hornet's Nest Hot Stuff I Have A Map? I Have Friends Everywhere I Spy I Survived The Infestation I'm Back, Baby! Immobile And Lovin' It Infodabbler Into The Breach It Was An Accident, I Swear It's Just You Item+ Jackpot Join The Dark Side Just What I Needed Knowing Is Half The Battle Let Me Out Of Here Librarian Live, Flee, And Rebuild Loot Pinata Made in Tau Ceti IV Main Advantage May I Have Another? Mindtrick Morally Flexible Myspace Network Effect No Signal Nope Not Today, Chutes Novice Programmer Oh No You Don't! Omniscient Cartographer One Hack Too Far Ooh, Shiny! Oops Organ Harvest Overwhelming Part-time Mechanic Partners In Destruction Party Time Payload Armed Physics Hates This One Trick Please Form A Line Plot Armor Power Corrupts Prison Break Project G-00 Prolific Hacker Pwned Quantum Hacking Quick And Dirty Recruitment Drive Remodeling Resistances Are Futile Respectable Loadout Revising The Future Revolutionary Research Ride The Lightning Risk Taker Rockin' Loadout Satisfying Serviceable Loadout Shopping List Significant Disruption Sixth Sense Slippery One Some Acronyms Are Better Than Others Spacetime Is Relative Speed Demon Spot Them First Storm Trooper Supersonic Suspicious System Compromised That Tickles The Better Part Of Valor The More The Merrier The Oracle There's More Where That Came From Throw Away The Key Total Silence Tourist Treasure Hunter Troublemaker True Hacker Tune-up Uninvited Guest Universal Adapter Unlikely Earthworm Versatile Walls Are Suggestions Watcher Gambling We Are Legion We Love MA Wheee! Whoosh! You Will Be Upgraded Zeroed Repercussions root@ Challenges ------------ None Game ------ Seed TargetShadingEdition Manual? 0 Play Time 16:14:08 Cumulative 16.2 hours Start 2025.11.07 @ 00:10:14 End 2025.11.09 @ 02:27:42 Sessions 12 Manual Loads 0 Difficulty Rogue Special Mode None Game No. 1 Rogue 1 Adventurer 0 Explorer 0 Win Type 3 Total 1 Types 0/0/0/1/0/0/0/0/0/0 Lore% 9 Gallery% 18 Achievement% 32 Wizard Run 0 Options --------- Layout 0 ASCII 1 Keyboard 1 Movement Arrows Keybinds 0 Fullscreen 1 Font 12/Smallcaps Map View 83x54 Zoom Use 0% Tactical HUD 1 Map Filters NONE Filters NONE Steam 0 RUN: 842f775a-a40d-487b-a6d9-f6d2255a9b26